Workbook

Sheet simulation-1000-laplacewürfel
H1: 11 | I1: 30 | J1: 11 | K1: 18 | L1: 1 | M1: 12 | S1: F9: neue Simulation starten
B2: 1 | C2: 2 | D2: 3 | E2: 4 | F2: 5 | G2: 6 | H2: Σ (H-n/6)²/(n/6) | I2: Σ|H-n/6| | J2: MAX|H-n/6| | K2: MAX(H)-MIN(H) | L2: #≤0.5*(n/6)+#≥(1.5*n/6) | M2: MAX|H(X≤i)-i*(n/6)|
A3: 120 | B3: =1/6 -> 0.1666666667 | C3: 0.1666666667 | D3: 0.1666666667 | E3: 0.1666666667 | F3: 0.1666666667 | G3: 0.1666666667 | H3: t | I3: s | J3: g | K3: u | L3: a | M3: ks | S3: Klassengrenze | T3: Testwert t
F4: 95%-Quantile -> | H4: =PERCENTILE(H5:H1004,0.95) -> 11.605 | I4: 32 | J4: 11 | K4: 18 | L4: 0 | M4: 12
A5: 1 | B5: =Häufigkeitsverteilung($A$3,B$3,C$3,D$3,E$3,F$3,G$3) -> 29 | C5: 22 | D5: 13 | E5: 19 | F5: 21 | G5: 16 | H5: =SUM((B5:G5-A$3/6)^2/(A$3/6)) -> 7.6 | I5: =SUM(ABS(B5:G5-A$3/6)) -> 24 | J5: =MAX(ABS(B5:G5-A$3/6)) -> 9 | K5: =MAX(B5:G5)-MIN(B5:G5) -> 16 | L5: =COUNTIF(B5:G5,"<=0.5*A$2/6")+COUNTIF(B5:G5,">=1.5*A$2/6") -> 0 | M5: =MAX(ABS(B5-$A$3/6),ABS(SUM(B5:C5)-2*$A$3/6),ABS(SUM(B5:D5)-3*$A$3/6),ABS(SUM(B5:E5)-4*$A$3/6),ABS(SUM(B5:F5)-5*$A$3/6)) -> 11 | S5: 0 | T5: =FREQUENCY(H5:H1005,S5:S55) -> 0
A6: 2 | B6: =Häufigkeitsverteilung($A$3,B$3,C$3,D$3,E$3,F$3,G$3) -> 21 | C6: 22 | D6: 26 | E6: 21 | F6: 19 | G6: 11 | H6: =SUM((B6:G6-A$3/6)^2/(A$3/6)) -> 6.2 | I6: =SUM(ABS(B6:G6-A$3/6)) -> 20 | J6: =MAX(ABS(B6:G6-A$3/6)) -> 9 | K6: =MAX(B6:G6)-MIN(B6:G6) -> 15 | L6: =COUNTIF(B6:G6,"<=0.5*A$2/6")+COUNTIF(B6:G6,">=1.5*A$2/6") -> 0 | M6: =MAX(ABS(B6-$A$3/6),ABS(SUM(B6:C6)-2*$A$3/6),ABS(SUM(B6:D6)-3*$A$3/6),ABS(SUM(B6:E6)-4*$A$3/6),ABS(SUM(B6:F6)-5*$A$3/6)) -> 10 | S6: 1 | T6: 39
A7: 3 | B7: =Häufigkeitsverteilung($A$3,B$3,C$3,D$3,E$3,F$3,G$3) -> 21 | C7: 19 | D7: 15 | E7: 14 | F7: 23 | G7: 28 | H7: =SUM((B7:G7-A$3/6)^2/(A$3/6)) -> 6.8 | I7: =SUM(ABS(B7:G7-A$3/6)) -> 24 | J7: =MAX(ABS(B7:G7-A$3/6)) -> 8 | K7: 14 | L7: =COUNTIF(B7:G7,"<=0.5*A$2/6")+COUNTIF(B7:G7,">=1.5*A$2/6") -> 0 | M7: 11 | S7: 2 | T7: 140
A8: 4 | B8: =Häufigkeitsverteilung($A$3,B$3,C$3,D$3,E$3,F$3,G$3) -> 17 | C8: 15 | D8: 22 | E8: 25 | F8: 24 | G8: 17 | H8: =SUM((B8:G8-A$3/6)^2/(A$3/6)) -> 4.4 | I8: =SUM(ABS(B8:G8-A$3/6)) -> 22 | J8: =MAX(ABS(B8:G8-A$3/6)) -> 5 | K8: 10 | L8: =COUNTIF(B8:G8,"<=0.5*A$2/6")+COUNTIF(B8:G8,">=1.5*A$2/6") -> 0 | M8: 8 | S8: 3 | T8: 128
A9: 5 | B9: =Häufigkeitsverteilung($A$3,B$3,C$3,D$3,E$3,F$3,G$3) -> 15 | C9: 19 | D9: 21 | E9: 26 | F9: 27 | G9: 12 | H9: =SUM((B9:G9-A$3/6)^2/(A$3/6)) -> 8.8 | I9: =SUM(ABS(B9:G9-A$3/6)) -> 28 | J9: =MAX(ABS(B9:G9-A$3/6)) -> 8 | K9: 15 | L9: =COUNTIF(B9:G9,"<=0.5*A$2/6")+COUNTIF(B9:G9,">=1.5*A$2/6") -> 0 | M9: 8 | S9: 4 | T9: 147
A10: 6 | B10: =Häufigkeitsverteilung($A$3,B$3,C$3,D$3,E$3,F$3,G$3) -> 20 | C10: 20 | D10: 18 | E10: 20 | F10: 23 | G10: 19 | H10: =SUM((B10:G10-A$3/6)^2/(A$3/6)) -> 0.7 | I10: =SUM(ABS(B10:G10-A$3/6)) -> 6 | J10: =MAX(ABS(B10:G10-A$3/6)) -> 3 | K10: 5 | L10: =COUNTIF(B10:G10,"<=0.5*A$2/6")+COUNTIF(B10:G10,">=1.5*A$2/6") -> 0 | M10: 2 | S10: 5 | T10: 134
A11: 7 | B11: =Häufigkeitsverteilung($A$3,B$3,C$3,D$3,E$3,F$3,G$3) -> 15 | C11: 26 | D11: 18 | E11: 25 | F11: 16 | G11: 20 | H11: =SUM((B11:G11-A$3/6)^2/(A$3/6)) -> 5.3 | I11: =SUM(ABS(B11:G11-A$3/6)) -> 22 | J11: =MAX(ABS(B11:G11-A$3/6)) -> 6 | K11: 11 | L11: =COUNTIF(B11:G11,"<=0.5*A$2/6")+COUNTIF(B11:G11,">=1.5*A$2/6") -> 0 | M11: 5 | S11: 6 | T11: 103
A12: 8 | B12: =Häufigkeitsverteilung($A$3,B$3,C$3,D$3,E$3,F$3,G$3) -> 16 | C12: 26 | D12: 23 | E12: 23 | F12: 12 | G12: 20 | H12: =SUM((B12:G12-A$3/6)^2/(A$3/6)) -> 6.7 | I12: =SUM(ABS(B12:G12-A$3/6)) -> 24 | J12: =MAX(ABS(B12:G12-A$3/6)) -> 8 | K12: 14 | L12: =COUNTIF(B12:G12,"<=0.5*A$2/6")+COUNTIF(B12:G12,">=1.5*A$2/6") -> 0 | M12: 8 | S12: 7 | T12: 95
A13: 9 | B13: =Häufigkeitsverteilung($A$3,B$3,C$3,D$3,E$3,F$3,G$3) -> 20 | C13: 17 | D13: 21 | E13: 16 | F13: 24 | G13: 22 | H13: =SUM((B13:G13-A$3/6)^2/(A$3/6)) -> 2.3 | I13: =SUM(ABS(B13:G13-A$3/6)) -> 14 | J13: =MAX(ABS(B13:G13-A$3/6)) -> 4 | K13: 8 | L13: =COUNTIF(B13:G13,"<=0.5*A$2/6")+COUNTIF(B13:G13,">=1.5*A$2/6") -> 0 | M13: 6 | S13: 8 | T13: 61
A14: 10 | B14: =Häufigkeitsverteilung($A$3,B$3,C$3,D$3,E$3,F$3,G$3) -> 23 | C14: 18 | D14: 17 | E14: 15 | F14: 20 | G14: 27 | H14: =SUM((B14:G14-A$3/6)^2/(A$3/6)) -> 4.8 | I14: =SUM(ABS(B14:G14-A$3/6)) -> 20 | J14: =MAX(ABS(B14:G14-A$3/6)) -> 7 | K14: 12 | L14: =COUNTIF(B14:G14,"<=0.5*A$2/6")+COUNTIF(B14:G14,">=1.5*A$2/6") -> 0 | M14: 7 | S14: 9 | T14: 35
A15: 11 | B15: =Häufigkeitsverteilung($A$3,B$3,C$3,D$3,E$3,F$3,G$3) -> 22 | C15: 19 | D15: 22 | E15: 16 | F15: 19 | G15: 22 | H15: =SUM((B15:G15-A$3/6)^2/(A$3/6)) -> 1.5 | I15: =SUM(ABS(B15:G15-A$3/6)) -> 12 | J15: =MAX(ABS(B15:G15-A$3/6)) -> 4 | K15: 6 | L15: =COUNTIF(B15:G15,"<=0.5*A$2/6")+COUNTIF(B15:G15,">=1.5*A$2/6") -> 0 | M15: 3 | S15: 10 | T15: 35
A16: 12 | B16: =Häufigkeitsverteilung($A$3,B$3,C$3,D$3,E$3,F$3,G$3) -> 18 | C16: 30 | D16: 17 | E16: 18 | F16: 20 | G16: 17 | H16: =SUM((B16:G16-A$3/6)^2/(A$3/6)) -> 6.3 | I16: =SUM(ABS(B16:G16-A$3/6)) -> 20 | J16: =MAX(ABS(B16:G16-A$3/6)) -> 10 | K16: 13 | L16: =COUNTIF(B16:G16,"<=0.5*A$2/6")+COUNTIF(B16:G16,">=1.5*A$2/6") -> 0 | M16: 8 | S16: 11 | T16: 27
A17: 13 | B17: =Häufigkeitsverteilung($A$3,B$3,C$3,D$3,E$3,F$3,G$3) -> 25 | C17: 14 | D17: 19 | E17: 22 | F17: 23 | G17: 17 | H17: =SUM((B17:G17-A$3/6)^2/(A$3/6)) -> 4.2 | I17: =SUM(ABS(B17:G17-A$3/6)) -> 20 | J17: =MAX(ABS(B17:G17-A$3/6)) -> 6 | K17: 11 | L17: =COUNTIF(B17:G17,"<=0.5*A$2/6")+COUNTIF(B17:G17,">=1.5*A$2/6") -> 0 | M17: 5 | S17: 12 | T17: 17
A18: 14 | B18: =Häufigkeitsverteilung($A$3,B$3,C$3,D$3,E$3,F$3,G$3) -> 21 | C18: 19 | D18: 21 | E18: 24 | F18: 22 | G18: 13 | H18: =SUM((B18:G18-A$3/6)^2/(A$3/6)) -> 3.6 | I18: =SUM(ABS(B18:G18-A$3/6)) -> 16 | J18: =MAX(ABS(B18:G18-A$3/6)) -> 7 | K18: 11 | L18: =COUNTIF(B18:G18,"<=0.5*A$2/6")+COUNTIF(B18:G18,">=1.5*A$2/6") -> 0 | M18: 7 | S18: 13 | T18: 10
A19: 15 | B19: =Häufigkeitsverteilung($A$3,B$3,C$3,D$3,E$3,F$3,G$3) -> 23 | C19: 24 | D19: 24 | E19: 16 | F19: 14 | G19: 19 | H19: =SUM((B19:G19-A$3/6)^2/(A$3/6)) -> 4.7 | I19: =SUM(ABS(B19:G19-A$3/6)) -> 22 | J19: =MAX(ABS(B19:G19-A$3/6)) -> 6 | K19: 10 | L19: =COUNTIF(B19:G19,"<=0.5*A$2/6")+COUNTIF(B19:G19,">=1.5*A$2/6") -> 0 | M19: 11 | S19: 14 | T19: 10
A20: 16 | B20: =Häufigkeitsverteilung($A$3,B$3,C$3,D$3,E$3,F$3,G$3) -> 18 | C20: 19 | D20: 19 | E20: 24 | F20: 25 | G20: 15 | H20: =SUM((B20:G20-A$3/6)^2/(A$3/6)) -> 3.6 | I20: =SUM(ABS(B20:G20-A$3/6)) -> 18 | J20: =MAX(ABS(B20:G20-A$3/6)) -> 5 | K20: =MAX(B20:G20)-MIN(B20:G20) -> 10 | L20: =COUNTIF(B20:G20,"<=0.5*A$2/6")+COUNTIF(B20:G20,">=1.5*A$2/6") -> 0 | M20: 5 | S20: 15 | T20: 7
A21: 17 | B21: =Häufigkeitsverteilung($A$3,B$3,C$3,D$3,E$3,F$3,G$3) -> 17 | C21: 20 | D21: 26 | E21: 21 | F21: 23 | G21: 13 | H21: =SUM((B21:G21-A$3/6)^2/(A$3/6)) -> 5.2 | I21: =SUM(ABS(B21:G21-A$3/6)) -> 20 | J21: =MAX(ABS(B21:G21-A$3/6)) -> 7 | K21: 13 | L21: =COUNTIF(B21:G21,"<=0.5*A$2/6")+COUNTIF(B21:G21,">=1.5*A$2/6") -> 0 | M21: 7 | S21: 16 | T21: 4
A22: 18 | B22: =Häufigkeitsverteilung($A$3,B$3,C$3,D$3,E$3,F$3,G$3) -> 22 | C22: 25 | D22: 23 | E22: 13 | F22: 21 | G22: 16 | H22: =SUM((B22:G22-A$3/6)^2/(A$3/6)) -> 5.2 | I22: =SUM(ABS(B22:G22-A$3/6)) -> 22 | J22: =MAX(ABS(B22:G22-A$3/6)) -> 7 | K22: 12 | L22: =COUNTIF(B22:G22,"<=0.5*A$2/6")+COUNTIF(B22:G22,">=1.5*A$2/6") -> 0 | M22: 10 | S22: 17 | T22: 4
A23: 19 | B23: =Häufigkeitsverteilung($A$3,B$3,C$3,D$3,E$3,F$3,G$3) -> 21 | C23: 23 | D23: 14 | E23: 22 | F23: 16 | G23: 24 | H23: =SUM((B23:G23-A$3/6)^2/(A$3/6)) -> 4.1 | I23: =SUM(ABS(B23:G23-A$3/6)) -> 20 | J23: =MAX(ABS(B23:G23-A$3/6)) -> 6 | K23: 10 | L23: =COUNTIF(B23:G23,"<=0.5*A$2/6")+COUNTIF(B23:G23,">=1.5*A$2/6") -> 0 | M23: 4 | S23: 18 | T23: 2
A24: 20 | B24: =Häufigkeitsverteilung($A$3,B$3,C$3,D$3,E$3,F$3,G$3) -> 26 | C24: 24 | D24: 21 | E24: 14 | F24: 19 | G24: 16 | H24: =SUM((B24:G24-A$3/6)^2/(A$3/6)) -> 5.3 | I24: =SUM(ABS(B24:G24-A$3/6)) -> 22 | J24: =MAX(ABS(B24:G24-A$3/6)) -> 6 | K24: 12 | L24: =COUNTIF(B24:G24,"<=0.5*A$2/6")+COUNTIF(B24:G24,">=1.5*A$2/6") -> 0 | M24: 11 | S24: 19 | T24: 0
A25: 21 | B25: =Häufigkeitsverteilung($A$3,B$3,C$3,D$3,E$3,F$3,G$3) -> 13 | C25: 9 | D25: 26 | E25: 19 | F25: 25 | G25: 28 | H25: =SUM((B25:G25-A$3/6)^2/(A$3/6)) -> 14.8 | I25: =SUM(ABS(B25:G25-A$3/6)) -> 38 | J25: =MAX(ABS(B25:G25-A$3/6)) -> 11 | K25: 19 | L25: =COUNTIF(B25:G25,"<=0.5*A$2/6")+COUNTIF(B25:G25,">=1.5*A$2/6") -> 0 | M25: 18 | S25: 20 | T25: 0
A26: 22 | B26: =Häufigkeitsverteilung($A$3,B$3,C$3,D$3,E$3,F$3,G$3) -> 18 | C26: 24 | D26: 19 | E26: 26 | F26: 12 | G26: 21 | H26: =SUM((B26:G26-A$3/6)^2/(A$3/6)) -> 6.1 | I26: =SUM(ABS(B26:G26-A$3/6)) -> 22 | J26: =MAX(ABS(B26:G26-A$3/6)) -> 8 | K26: 14 | L26: =COUNTIF(B26:G26,"<=0.5*A$2/6")+COUNTIF(B26:G26,">=1.5*A$2/6") -> 0 | M26: 7 | S26: 21 | T26: 1
A27: 23 | B27: =Häufigkeitsverteilung($A$3,B$3,C$3,D$3,E$3,F$3,G$3) -> 20 | C27: 16 | D27: 19 | E27: 23 | F27: 21 | G27: 21 | H27: =SUM((B27:G27-A$3/6)^2/(A$3/6)) -> 1.4 | I27: =SUM(ABS(B27:G27-A$3/6)) -> 10 | J27: =MAX(ABS(B27:G27-A$3/6)) -> 4 | K27: 7 | L27: =COUNTIF(B27:G27,"<=0.5*A$2/6")+COUNTIF(B27:G27,">=1.5*A$2/6") -> 0 | M27: 5 | S27: 22 | T27: 0
A28: 24 | B28: =Häufigkeitsverteilung($A$3,B$3,C$3,D$3,E$3,F$3,G$3) -> 11 | C28: 20 | D28: 27 | E28: 19 | F28: 26 | G28: 17 | H28: =SUM((B28:G28-A$3/6)^2/(A$3/6)) -> 8.8 | I28: =SUM(ABS(B28:G28-A$3/6)) -> 26 | J28: =MAX(ABS(B28:G28-A$3/6)) -> 9 | K28: 16 | L28: =COUNTIF(B28:G28,"<=0.5*A$2/6")+COUNTIF(B28:G28,">=1.5*A$2/6") -> 0 | M28: 9 | S28: 23 | T28: 0
A29: 25 | B29: =Häufigkeitsverteilung($A$3,B$3,C$3,D$3,E$3,F$3,G$3) -> 23 | C29: 20 | D29: 30 | E29: 12 | F29: 22 | G29: 13 | H29: =SUM((B29:G29-A$3/6)^2/(A$3/6)) -> 11.3 | I29: =SUM(ABS(B29:G29-A$3/6)) -> 30 | J29: =MAX(ABS(B29:G29-A$3/6)) -> 10 | K29: 18 | L29: =COUNTIF(B29:G29,"<=0.5*A$2/6")+COUNTIF(B29:G29,">=1.5*A$2/6") -> 0 | M29: 13 | S29: 24 | T29: 0
A30: 26 | B30: =Häufigkeitsverteilung($A$3,B$3,C$3,D$3,E$3,F$3,G$3) -> 22 | C30: 18 | D30: 24 | E30: 23 | F30: 15 | G30: 18 | H30: =SUM((B30:G30-A$3/6)^2/(A$3/6)) -> 3.1 | I30: =SUM(ABS(B30:G30-A$3/6)) -> 18 | J30: =MAX(ABS(B30:G30-A$3/6)) -> 5 | K30: 9 | L30: =COUNTIF(B30:G30,"<=0.5*A$2/6")+COUNTIF(B30:G30,">=1.5*A$2/6") -> 0 | M30: 7 | S30: 25 | T30: 0
A31: 27 | B31: =Häufigkeitsverteilung($A$3,B$3,C$3,D$3,E$3,F$3,G$3) -> 15 | C31: 17 | D31: 18 | E31: 22 | F31: 23 | G31: 25 | H31: =SUM((B31:G31-A$3/6)^2/(A$3/6)) -> 3.8 | I31: =SUM(ABS(B31:G31-A$3/6)) -> 20 | J31: =MAX(ABS(B31:G31-A$3/6)) -> 5 | K31: 10 | L31: =COUNTIF(B31:G31,"<=0.5*A$2/6")+COUNTIF(B31:G31,">=1.5*A$2/6") -> 0 | M31: 10 | S31: 26 | T31: 1
A32: 28 | B32: =Häufigkeitsverteilung($A$3,B$3,C$3,D$3,E$3,F$3,G$3) -> 19 | C32: 22 | D32: 17 | E32: 21 | F32: 22 | G32: 19 | H32: =SUM((B32:G32-A$3/6)^2/(A$3/6)) -> 1 | I32: =SUM(ABS(B32:G32-A$3/6)) -> 10 | J32: =MAX(ABS(B32:G32-A$3/6)) -> 3 | K32: 5 | L32: =COUNTIF(B32:G32,"<=0.5*A$2/6")+COUNTIF(B32:G32,">=1.5*A$2/6") -> 0 | M32: 2 | S32: 27 | T32: 0
A33: 29 | B33: =Häufigkeitsverteilung($A$3,B$3,C$3,D$3,E$3,F$3,G$3) -> 22 | C33: 18 | D33: 17 | E33: 24 | F33: 17 | G33: 22 | H33: =SUM((B33:G33-A$3/6)^2/(A$3/6)) -> 2.3 | I33: =SUM(ABS(B33:G33-A$3/6)) -> 16 | J33: =MAX(ABS(B33:G33-A$3/6)) -> 4 | K33: 7 | L33: =COUNTIF(B33:G33,"<=0.5*A$2/6")+COUNTIF(B33:G33,">=1.5*A$2/6") -> 0 | M33: 3 | S33: 28 | T33: 0
A34: 30 | B34: =Häufigkeitsverteilung($A$3,B$3,C$3,D$3,E$3,F$3,G$3) -> 25 | C34: 19 | D34: 19 | E34: 21 | F34: 14 | G34: 22 | H34: =SUM((B34:G34-A$3/6)^2/(A$3/6)) -> 3.4 | I34: =SUM(ABS(B34:G34-A$3/6)) -> 16 | J34: =MAX(ABS(B34:G34-A$3/6)) -> 6 | K34: 11 | L34: =COUNTIF(B34:G34,"<=0.5*A$2/6")+COUNTIF(B34:G34,">=1.5*A$2/6") -> 0 | M34: 5 | S34: 29 | T34: 0
A35: 31 | B35: =Häufigkeitsverteilung($A$3,B$3,C$3,D$3,E$3,F$3,G$3) -> 16 | C35: 18 | D35: 20 | E35: 23 | F35: 24 | G35: 19 | H35: =SUM((B35:G35-A$3/6)^2/(A$3/6)) -> 2.3 | I35: =SUM(ABS(B35:G35-A$3/6)) -> 14 | J35: =MAX(ABS(B35:G35-A$3/6)) -> 4 | K35: 8 | L35: =COUNTIF(B35:G35,"<=0.5*A$2/6")+COUNTIF(B35:G35,">=1.5*A$2/6") -> 0 | M35: 6 | S35: 30 | T35: 0
A36: 32 | B36: =Häufigkeitsverteilung($A$3,B$3,C$3,D$3,E$3,F$3,G$3) -> 13 | C36: 21 | D36: 14 | E36: 15 | F36: 22 | G36: 35 | H36: =SUM((B36:G36-A$3/6)^2/(A$3/6)) -> 17 | I36: =SUM(ABS(B36:G36-A$3/6)) -> 36 | J36: =MAX(ABS(B36:G36-A$3/6)) -> 15 | K36: 22 | L36: =COUNTIF(B36:G36,"<=0.5*A$2/6")+COUNTIF(B36:G36,">=1.5*A$2/6") -> 0 | M36: 17 | S36: 31 | T36: 0
A37: 33 | B37: =Häufigkeitsverteilung($A$3,B$3,C$3,D$3,E$3,F$3,G$3) -> 22 | C37: 23 | D37: 19 | E37: 16 | F37: 19 | G37: 21 | H37: =SUM((B37:G37-A$3/6)^2/(A$3/6)) -> 1.6 | I37: =SUM(ABS(B37:G37-A$3/6)) -> 12 | J37: =MAX(ABS(B37:G37-A$3/6)) -> 4 | K37: 7 | L37: =COUNTIF(B37:G37,"<=0.5*A$2/6")+COUNTIF(B37:G37,">=1.5*A$2/6") -> 0 | M37: 5 | S37: 32 | T37: 0
A38: 34 | B38: =Häufigkeitsverteilung($A$3,B$3,C$3,D$3,E$3,F$3,G$3) -> 21 | C38: 20 | D38: 18 | E38: 21 | F38: 24 | G38: 16 | H38: =SUM((B38:G38-A$3/6)^2/(A$3/6)) -> 1.9 | I38: =SUM(ABS(B38:G38-A$3/6)) -> 12 | J38: =MAX(ABS(B38:G38-A$3/6)) -> 4 | K38: 8 | L38: =COUNTIF(B38:G38,"<=0.5*A$2/6")+COUNTIF(B38:G38,">=1.5*A$2/6") -> 0 | M38: 4 | S38: 33 | T38: 0
A39: 35 | B39: =Häufigkeitsverteilung($A$3,B$3,C$3,D$3,E$3,F$3,G$3) -> 23 | C39: 16 | D39: 19 | E39: 25 | F39: 18 | G39: 19 | H39: =SUM((B39:G39-A$3/6)^2/(A$3/6)) -> 2.8 | I39: =SUM(ABS(B39:G39-A$3/6)) -> 16 | J39: =MAX(ABS(B39:G39-A$3/6)) -> 5 | K39: 9 | L39: =COUNTIF(B39:G39,"<=0.5*A$2/6")+COUNTIF(B39:G39,">=1.5*A$2/6") -> 0 | M39: 3 | S39: 34 | T39: 0
A40: 36 | B40: =Häufigkeitsverteilung($A$3,B$3,C$3,D$3,E$3,F$3,G$3) -> 12 | C40: 27 | D40: 25 | E40: 18 | F40: 11 | G40: 27 | H40: =SUM((B40:G40-A$3/6)^2/(A$3/6)) -> 13.6 | I40: =SUM(ABS(B40:G40-A$3/6)) -> 38 | J40: =MAX(ABS(B40:G40-A$3/6)) -> 9 | K40: 16 | L40: =COUNTIF(B40:G40,"<=0.5*A$2/6")+COUNTIF(B40:G40,">=1.5*A$2/6") -> 0 | M40: 8 | S40: 35 | T40: 0
A41: 37 | B41: =Häufigkeitsverteilung($A$3,B$3,C$3,D$3,E$3,F$3,G$3) -> 16 | C41: 17 | D41: 22 | E41: 23 | F41: 16 | G41: 26 | H41: =SUM((B41:G41-A$3/6)^2/(A$3/6)) -> 4.5 | I41: =SUM(ABS(B41:G41-A$3/6)) -> 22 | J41: =MAX(ABS(B41:G41-A$3/6)) -> 6 | K41: 10 | L41: =COUNTIF(B41:G41,"<=0.5*A$2/6")+COUNTIF(B41:G41,">=1.5*A$2/6") -> 0 | M41: 7 | S41: 36 | T41: 0
A42: 38 | B42: =Häufigkeitsverteilung($A$3,B$3,C$3,D$3,E$3,F$3,G$3) -> 22 | C42: 22 | D42: 22 | E42: 14 | F42: 14 | G42: 26 | H42: =SUM((B42:G42-A$3/6)^2/(A$3/6)) -> 6 | I42: =SUM(ABS(B42:G42-A$3/6)) -> 24 | J42: =MAX(ABS(B42:G42-A$3/6)) -> 6 | K42: 12 | L42: =COUNTIF(B42:G42,"<=0.5*A$2/6")+COUNTIF(B42:G42,">=1.5*A$2/6") -> 0 | M42: 6 | S42: 37 | T42: 0
A43: 39 | B43: =Häufigkeitsverteilung($A$3,B$3,C$3,D$3,E$3,F$3,G$3) -> 19 | C43: 20 | D43: 18 | E43: 18 | F43: 20 | G43: 25 | H43: =SUM((B43:G43-A$3/6)^2/(A$3/6)) -> 1.7 | I43: =SUM(ABS(B43:G43-A$3/6)) -> 10 | J43: =MAX(ABS(B43:G43-A$3/6)) -> 5 | K43: 7 | L43: =COUNTIF(B43:G43,"<=0.5*A$2/6")+COUNTIF(B43:G43,">=1.5*A$2/6") -> 0 | M43: 5 | S43: 38 | T43: 0
A44: 40 | B44: =Häufigkeitsverteilung($A$3,B$3,C$3,D$3,E$3,F$3,G$3) -> 14 | C44: 24 | D44: 29 | E44: 17 | F44: 21 | G44: 15 | H44: =SUM((B44:G44-A$3/6)^2/(A$3/6)) -> 8.4 | I44: =SUM(ABS(B44:G44-A$3/6)) -> 28 | J44: =MAX(ABS(B44:G44-A$3/6)) -> 9 | K44: 15 | L44: =COUNTIF(B44:G44,"<=0.5*A$2/6")+COUNTIF(B44:G44,">=1.5*A$2/6") -> 0 | M44: 7 | S44: 39 | T44: 0
A45: 41 | B45: =Häufigkeitsverteilung($A$3,B$3,C$3,D$3,E$3,F$3,G$3) -> 17 | C45: 21 | D45: 13 | E45: 23 | F45: 23 | G45: 23 | H45: =SUM((B45:G45-A$3/6)^2/(A$3/6)) -> 4.3 | I45: =SUM(ABS(B45:G45-A$3/6)) -> 20 | J45: =MAX(ABS(B45:G45-A$3/6)) -> 7 | K45: 10 | L45: =COUNTIF(B45:G45,"<=0.5*A$2/6")+COUNTIF(B45:G45,">=1.5*A$2/6") -> 0 | M45: 9 | S45: 40 | T45: 0
A46: 42 | B46: =Häufigkeitsverteilung($A$3,B$3,C$3,D$3,E$3,F$3,G$3) -> 18 | C46: 22 | D46: 21 | E46: 12 | F46: 25 | G46: 22 | H46: =SUM((B46:G46-A$3/6)^2/(A$3/6)) -> 5.1 | I46: =SUM(ABS(B46:G46-A$3/6)) -> 20 | J46: =MAX(ABS(B46:G46-A$3/6)) -> 8 | K46: 13 | L46: =COUNTIF(B46:G46,"<=0.5*A$2/6")+COUNTIF(B46:G46,">=1.5*A$2/6") -> 0 | M46: 7 | S46: 41 | T46: 0
A47: 43 | B47: =Häufigkeitsverteilung($A$3,B$3,C$3,D$3,E$3,F$3,G$3) -> 27 | C47: 16 | D47: 26 | E47: 17 | F47: 19 | G47: 15 | H47: =SUM((B47:G47-A$3/6)^2/(A$3/6)) -> 6.8 | I47: =SUM(ABS(B47:G47-A$3/6)) -> 26 | J47: =MAX(ABS(B47:G47-A$3/6)) -> 7 | K47: 12 | L47: =COUNTIF(B47:G47,"<=0.5*A$2/6")+COUNTIF(B47:G47,">=1.5*A$2/6") -> 0 | M47: 9 | S47: 42 | T47: 0
A48: 44 | B48: =Häufigkeitsverteilung($A$3,B$3,C$3,D$3,E$3,F$3,G$3) -> 23 | C48: 21 | D48: 17 | E48: 19 | F48: 25 | G48: 15 | H48: =SUM((B48:G48-A$3/6)^2/(A$3/6)) -> 3.5 | I48: =SUM(ABS(B48:G48-A$3/6)) -> 18 | J48: =MAX(ABS(B48:G48-A$3/6)) -> 5 | K48: 10 | L48: =COUNTIF(B48:G48,"<=0.5*A$2/6")+COUNTIF(B48:G48,">=1.5*A$2/6") -> 0 | M48: 5 | S48: 43 | T48: 0
A49: 45 | B49: =Häufigkeitsverteilung($A$3,B$3,C$3,D$3,E$3,F$3,G$3) -> 27 | C49: 22 | D49: 17 | E49: 18 | F49: 19 | G49: 17 | H49: =SUM((B49:G49-A$3/6)^2/(A$3/6)) -> 3.8 | I49: =SUM(ABS(B49:G49-A$3/6)) -> 18 | J49: =MAX(ABS(B49:G49-A$3/6)) -> 7 | K49: 10 | L49: =COUNTIF(B49:G49,"<=0.5*A$2/6")+COUNTIF(B49:G49,">=1.5*A$2/6") -> 0 | M49: 9 | S49: 44 | T49: 0
A50: 46 | B50: =Häufigkeitsverteilung($A$3,B$3,C$3,D$3,E$3,F$3,G$3) -> 21 | C50: 18 | D50: 17 | E50: 23 | F50: 17 | G50: 24 | H50: =SUM((B50:G50-A$3/6)^2/(A$3/6)) -> 2.4 | I50: =SUM(ABS(B50:G50-A$3/6)) -> 16 | J50: =MAX(ABS(B50:G50-A$3/6)) -> 4 | K50: 7 | L50: =COUNTIF(B50:G50,"<=0.5*A$2/6")+COUNTIF(B50:G50,">=1.5*A$2/6") -> 0 | M50: 4 | S50: 45 | T50: 0
A51: 47 | B51: =Häufigkeitsverteilung($A$3,B$3,C$3,D$3,E$3,F$3,G$3) -> 15 | C51: 21 | D51: 19 | E51: 18 | F51: 27 | G51: 20 | H51: =SUM((B51:G51-A$3/6)^2/(A$3/6)) -> 4 | I51: =SUM(ABS(B51:G51-A$3/6)) -> 16 | J51: =MAX(ABS(B51:G51-A$3/6)) -> 7 | K51: 12 | L51: =COUNTIF(B51:G51,"<=0.5*A$2/6")+COUNTIF(B51:G51,">=1.5*A$2/6") -> 0 | M51: 7 | S51: 46 | T51: 0
A52: 48 | B52: =Häufigkeitsverteilung($A$3,B$3,C$3,D$3,E$3,F$3,G$3) -> 19 | C52: 17 | D52: 17 | E52: 21 | F52: 24 | G52: 22 | H52: =SUM((B52:G52-A$3/6)^2/(A$3/6)) -> 2 | I52: =SUM(ABS(B52:G52-A$3/6)) -> 14 | J52: =MAX(ABS(B52:G52-A$3/6)) -> 4 | K52: 7 | L52: =COUNTIF(B52:G52,"<=0.5*A$2/6")+COUNTIF(B52:G52,">=1.5*A$2/6") -> 0 | M52: 7 | S52: 47 | T52: 0
A53: 49 | B53: =Häufigkeitsverteilung($A$3,B$3,C$3,D$3,E$3,F$3,G$3) -> 25 | C53: 24 | D53: 22 | E53: 16 | F53: 24 | G53: 9 | H53: =SUM((B53:G53-A$3/6)^2/(A$3/6)) -> 9.9 | I53: =SUM(ABS(B53:G53-A$3/6)) -> 30 | J53: =MAX(ABS(B53:G53-A$3/6)) -> 11 | K53: 16 | L53: =COUNTIF(B53:G53,"<=0.5*A$2/6")+COUNTIF(B53:G53,">=1.5*A$2/6") -> 0 | M53: 11 | S53: 48 | T53: 0
A54: 50 | B54: =Häufigkeitsverteilung($A$3,B$3,C$3,D$3,E$3,F$3,G$3) -> 17 | C54: 22 | D54: 17 | E54: 24 | F54: 21 | G54: 19 | H54: =SUM((B54:G54-A$3/6)^2/(A$3/6)) -> 2 | I54: =SUM(ABS(B54:G54-A$3/6)) -> 14 | J54: =MAX(ABS(B54:G54-A$3/6)) -> 4 | K54: 7 | L54: =COUNTIF(B54:G54,"<=0.5*A$2/6")+COUNTIF(B54:G54,">=1.5*A$2/6") -> 0 | M54: 4 | S54: 49 | T54: 0
A55: 51 | B55: =Häufigkeitsverteilung($A$3,B$3,C$3,D$3,E$3,F$3,G$3) -> 21 | C55: 23 | D55: 17 | E55: 22 | F55: 18 | G55: 19 | H55: =SUM((B55:G55-A$3/6)^2/(A$3/6)) -> 1.4 | I55: =SUM(ABS(B55:G55-A$3/6)) -> 12 | J55: =MAX(ABS(B55:G55-A$3/6)) -> 3 | K55: 6 | L55: =COUNTIF(B55:G55,"<=0.5*A$2/6")+COUNTIF(B55:G55,">=1.5*A$2/6") -> 0 | M55: 4 | S55: 50 | T55: 0
A56: 52 | B56: =Häufigkeitsverteilung($A$3,B$3,C$3,D$3,E$3,F$3,G$3) -> 19 | C56: 24 | D56: 17 | E56: 24 | F56: 17 | G56: 19 | H56: =SUM((B56:G56-A$3/6)^2/(A$3/6)) -> 2.6 | I56: =SUM(ABS(B56:G56-A$3/6)) -> 16 | J56: =MAX(ABS(B56:G56-A$3/6)) -> 4 | K56: 7 | L56: =COUNTIF(B56:G56,"<=0.5*A$2/6")+COUNTIF(B56:G56,">=1.5*A$2/6") -> 0 | M56: 4
A57: 53 | B57: =Häufigkeitsverteilung($A$3,B$3,C$3,D$3,E$3,F$3,G$3) -> 19 | C57: 20 | D57: 26 | E57: 15 | F57: 23 | G57: 17 | H57: =SUM((B57:G57-A$3/6)^2/(A$3/6)) -> 4 | I57: =SUM(ABS(B57:G57-A$3/6)) -> 18 | J57: =MAX(ABS(B57:G57-A$3/6)) -> 6 | K57: 11 | L57: =COUNTIF(B57:G57,"<=0.5*A$2/6")+COUNTIF(B57:G57,">=1.5*A$2/6") -> 0 | M57: 5
A58: 54 | B58: =Häufigkeitsverteilung($A$3,B$3,C$3,D$3,E$3,F$3,G$3) -> 25 | C58: 23 | D58: 14 | E58: 21 | F58: 21 | G58: 16 | H58: =SUM((B58:G58-A$3/6)^2/(A$3/6)) -> 4.4 | I58: =SUM(ABS(B58:G58-A$3/6)) -> 20 | J58: =MAX(ABS(B58:G58-A$3/6)) -> 6 | K58: 11 | L58: =COUNTIF(B58:G58,"<=0.5*A$2/6")+COUNTIF(B58:G58,">=1.5*A$2/6") -> 0 | M58: 8
A59: 55 | B59: =Häufigkeitsverteilung($A$3,B$3,C$3,D$3,E$3,F$3,G$3) -> 17 | C59: 18 | D59: 19 | E59: 22 | F59: 21 | G59: 23 | H59: =SUM((B59:G59-A$3/6)^2/(A$3/6)) -> 1.4 | I59: =SUM(ABS(B59:G59-A$3/6)) -> 12 | J59: =MAX(ABS(B59:G59-A$3/6)) -> 3 | K59: 6 | L59: =COUNTIF(B59:G59,"<=0.5*A$2/6")+COUNTIF(B59:G59,">=1.5*A$2/6") -> 0 | M59: 6
A60: 56 | B60: =Häufigkeitsverteilung($A$3,B$3,C$3,D$3,E$3,F$3,G$3) -> 21 | C60: 19 | D60: 22 | E60: 23 | F60: 18 | G60: 17 | H60: =SUM((B60:G60-A$3/6)^2/(A$3/6)) -> 1.4 | I60: =SUM(ABS(B60:G60-A$3/6)) -> 12 | J60: =MAX(ABS(B60:G60-A$3/6)) -> 3 | K60: 6 | L60: =COUNTIF(B60:G60,"<=0.5*A$2/6")+COUNTIF(B60:G60,">=1.5*A$2/6") -> 0 | M60: 5
A61: 57 | B61: =Häufigkeitsverteilung($A$3,B$3,C$3,D$3,E$3,F$3,G$3) -> 13 | C61: 22 | D61: 26 | E61: 19 | F61: 20 | G61: 20 | H61: =SUM((B61:G61-A$3/6)^2/(A$3/6)) -> 4.5 | I61: =SUM(ABS(B61:G61-A$3/6)) -> 16 | J61: =MAX(ABS(B61:G61-A$3/6)) -> 7 | K61: 13 | L61: =COUNTIF(B61:G61,"<=0.5*A$2/6")+COUNTIF(B61:G61,">=1.5*A$2/6") -> 0 | M61: 7
A62: 58 | B62: =Häufigkeitsverteilung($A$3,B$3,C$3,D$3,E$3,F$3,G$3) -> 15 | C62: 15 | D62: 25 | E62: 27 | F62: 20 | G62: 18 | H62: =SUM((B62:G62-A$3/6)^2/(A$3/6)) -> 6.4 | I62: =SUM(ABS(B62:G62-A$3/6)) -> 24 | J62: =MAX(ABS(B62:G62-A$3/6)) -> 7 | K62: 12 | L62: =COUNTIF(B62:G62,"<=0.5*A$2/6")+COUNTIF(B62:G62,">=1.5*A$2/6") -> 0 | M62: 10
A63: 59 | B63: =Häufigkeitsverteilung($A$3,B$3,C$3,D$3,E$3,F$3,G$3) -> 19 | C63: 20 | D63: 13 | E63: 22 | F63: 22 | G63: 24 | H63: =SUM((B63:G63-A$3/6)^2/(A$3/6)) -> 3.7 | I63: =SUM(ABS(B63:G63-A$3/6)) -> 16 | J63: =MAX(ABS(B63:G63-A$3/6)) -> 7 | K63: 11 | L63: =COUNTIF(B63:G63,"<=0.5*A$2/6")+COUNTIF(B63:G63,">=1.5*A$2/6") -> 0 | M63: 8
A64: 60 | B64: =Häufigkeitsverteilung($A$3,B$3,C$3,D$3,E$3,F$3,G$3) -> 21 | C64: 24 | D64: 20 | E64: 19 | F64: 12 | G64: 24 | H64: =SUM((B64:G64-A$3/6)^2/(A$3/6)) -> 4.9 | I64: =SUM(ABS(B64:G64-A$3/6)) -> 18 | J64: =MAX(ABS(B64:G64-A$3/6)) -> 8 | K64: 12 | L64: =COUNTIF(B64:G64,"<=0.5*A$2/6")+COUNTIF(B64:G64,">=1.5*A$2/6") -> 0 | M64: 5
A65: 61 | B65: =Häufigkeitsverteilung($A$3,B$3,C$3,D$3,E$3,F$3,G$3) -> 23 | C65: 15 | D65: 26 | E65: 23 | F65: 19 | G65: 14 | H65: =SUM((B65:G65-A$3/6)^2/(A$3/6)) -> 5.8 | I65: =SUM(ABS(B65:G65-A$3/6)) -> 24 | J65: =MAX(ABS(B65:G65-A$3/6)) -> 6 | K65: 12 | L65: =COUNTIF(B65:G65,"<=0.5*A$2/6")+COUNTIF(B65:G65,">=1.5*A$2/6") -> 0 | M65: 7
A66: 62 | B66: =Häufigkeitsverteilung($A$3,B$3,C$3,D$3,E$3,F$3,G$3) -> 17 | C66: 20 | D66: 19 | E66: 21 | F66: 25 | G66: 18 | H66: =SUM((B66:G66-A$3/6)^2/(A$3/6)) -> 2 | I66: =SUM(ABS(B66:G66-A$3/6)) -> 12 | J66: =MAX(ABS(B66:G66-A$3/6)) -> 5 | K66: 8 | L66: =COUNTIF(B66:G66,"<=0.5*A$2/6")+COUNTIF(B66:G66,">=1.5*A$2/6") -> 0 | M66: 4
A67: 63 | B67: =Häufigkeitsverteilung($A$3,B$3,C$3,D$3,E$3,F$3,G$3) -> 18 | C67: 29 | D67: 24 | E67: 18 | F67: 15 | G67: 16 | H67: =SUM((B67:G67-A$3/6)^2/(A$3/6)) -> 7.3 | I67: =SUM(ABS(B67:G67-A$3/6)) -> 26 | J67: =MAX(ABS(B67:G67-A$3/6)) -> 9 | K67: 14 | L67: =COUNTIF(B67:G67,"<=0.5*A$2/6")+COUNTIF(B67:G67,">=1.5*A$2/6") -> 0 | M67: 11
A68: 64 | B68: =Häufigkeitsverteilung($A$3,B$3,C$3,D$3,E$3,F$3,G$3) -> 22 | C68: 26 | D68: 17 | E68: 19 | F68: 19 | G68: 17 | H68: =SUM((B68:G68-A$3/6)^2/(A$3/6)) -> 3 | I68: =SUM(ABS(B68:G68-A$3/6)) -> 16 | J68: =MAX(ABS(B68:G68-A$3/6)) -> 6 | K68: 9 | L68: =COUNTIF(B68:G68,"<=0.5*A$2/6")+COUNTIF(B68:G68,">=1.5*A$2/6") -> 0 | M68: 8
A69: 65 | B69: =Häufigkeitsverteilung($A$3,B$3,C$3,D$3,E$3,F$3,G$3) -> 16 | C69: 15 | D69: 25 | E69: 19 | F69: 26 | G69: 19 | H69: =SUM((B69:G69-A$3/6)^2/(A$3/6)) -> 5.2 | I69: =SUM(ABS(B69:G69-A$3/6)) -> 22 | J69: =MAX(ABS(B69:G69-A$3/6)) -> 6 | K69: 11 | L69: =COUNTIF(B69:G69,"<=0.5*A$2/6")+COUNTIF(B69:G69,">=1.5*A$2/6") -> 0 | M69: 9
A70: 66 | B70: =Häufigkeitsverteilung($A$3,B$3,C$3,D$3,E$3,F$3,G$3) -> 18 | C70: 14 | D70: 20 | E70: 26 | F70: 19 | G70: 23 | H70: =SUM((B70:G70-A$3/6)^2/(A$3/6)) -> 4.3 | I70: =SUM(ABS(B70:G70-A$3/6)) -> 18 | J70: =MAX(ABS(B70:G70-A$3/6)) -> 6 | K70: 12 | L70: =COUNTIF(B70:G70,"<=0.5*A$2/6")+COUNTIF(B70:G70,">=1.5*A$2/6") -> 0 | M70: =MAX(ABS(B70-$A$3/6),ABS(SUM(B70:C70)-2*$A$3/6),ABS(SUM(B70:D70)-3*$A$3/6),ABS(SUM(B70:E70)-4*$A$3/6),ABS(SUM(B70:F70)-5*$A$3/6)) -> 8
A71: 67 | B71: =Häufigkeitsverteilung($A$3,B$3,C$3,D$3,E$3,F$3,G$3) -> 29 | C71: 17 | D71: 24 | E71: 20 | F71: 16 | G71: 14 | H71: =SUM((B71:G71-A$3/6)^2/(A$3/6)) -> 7.9 | I71: =SUM(ABS(B71:G71-A$3/6)) -> 26 | J71: =MAX(ABS(B71:G71-A$3/6)) -> 9 | K71: 15 | L71: =COUNTIF(B71:G71,"<=0.5*A$2/6")+COUNTIF(B71:G71,">=1.5*A$2/6") -> 0 | M71: 10
A72: 68 | B72: =Häufigkeitsverteilung($A$3,B$3,C$3,D$3,E$3,F$3,G$3) -> 14 | C72: 12 | D72: 22 | E72: 27 | F72: 26 | G72: 19 | H72: =SUM((B72:G72-A$3/6)^2/(A$3/6)) -> 9.5 | I72: =SUM(ABS(B72:G72-A$3/6)) -> 30 | J72: =MAX(ABS(B72:G72-A$3/6)) -> 8 | K72: 15 | L72: =COUNTIF(B72:G72,"<=0.5*A$2/6")+COUNTIF(B72:G72,">=1.5*A$2/6") -> 0 | M72: 14
A73: 69 | B73: =Häufigkeitsverteilung($A$3,B$3,C$3,D$3,E$3,F$3,G$3) -> 24 | C73: 22 | D73: 19 | E73: 14 | F73: 21 | G73: 20 | H73: =SUM((B73:G73-A$3/6)^2/(A$3/6)) -> 2.9 | I73: =SUM(ABS(B73:G73-A$3/6)) -> 14 | J73: =MAX(ABS(B73:G73-A$3/6)) -> 6 | K73: 10 | L73: =COUNTIF(B73:G73,"<=0.5*A$2/6")+COUNTIF(B73:G73,">=1.5*A$2/6") -> 0 | M73: 6
A74: 70 | B74: =Häufigkeitsverteilung($A$3,B$3,C$3,D$3,E$3,F$3,G$3) -> 29 | C74: 19 | D74: 17 | E74: 12 | F74: 13 | G74: 30 | H74: =SUM((B74:G74-A$3/6)^2/(A$3/6)) -> 15.2 | I74: =SUM(ABS(B74:G74-A$3/6)) -> 38 | J74: =MAX(ABS(B74:G74-A$3/6)) -> 10 | K74: 18 | L74: =COUNTIF(B74:G74,"<=0.5*A$2/6")+COUNTIF(B74:G74,">=1.5*A$2/6") -> 0 | M74: 10
A75: 71 | B75: =Häufigkeitsverteilung($A$3,B$3,C$3,D$3,E$3,F$3,G$3) -> 27 | C75: 17 | D75: 15 | E75: 14 | F75: 25 | G75: 22 | H75: =SUM((B75:G75-A$3/6)^2/(A$3/6)) -> 7.4 | I75: =SUM(ABS(B75:G75-A$3/6)) -> 28 | J75: =MAX(ABS(B75:G75-A$3/6)) -> 7 | K75: 13 | L75: =COUNTIF(B75:G75,"<=0.5*A$2/6")+COUNTIF(B75:G75,">=1.5*A$2/6") -> 0 | M75: 7
A76: 72 | B76: =Häufigkeitsverteilung($A$3,B$3,C$3,D$3,E$3,F$3,G$3) -> 18 | C76: 20 | D76: 22 | E76: 24 | F76: 19 | G76: 17 | H76: =SUM((B76:G76-A$3/6)^2/(A$3/6)) -> 1.7 | I76: =SUM(ABS(B76:G76-A$3/6)) -> 12 | J76: =MAX(ABS(B76:G76-A$3/6)) -> 4 | K76: 7 | L76: =COUNTIF(B76:G76,"<=0.5*A$2/6")+COUNTIF(B76:G76,">=1.5*A$2/6") -> 0 | M76: 4
A77: 73 | B77: =Häufigkeitsverteilung($A$3,B$3,C$3,D$3,E$3,F$3,G$3) -> 13 | C77: 27 | D77: 21 | E77: 20 | F77: 19 | G77: 20 | H77: =SUM((B77:G77-A$3/6)^2/(A$3/6)) -> 5 | I77: =SUM(ABS(B77:G77-A$3/6)) -> 16 | J77: =MAX(ABS(B77:G77-A$3/6)) -> 7 | K77: 14 | L77: =COUNTIF(B77:G77,"<=0.5*A$2/6")+COUNTIF(B77:G77,">=1.5*A$2/6") -> 0 | M77: 7
A78: 74 | B78: =Häufigkeitsverteilung($A$3,B$3,C$3,D$3,E$3,F$3,G$3) -> 21 | C78: 16 | D78: 17 | E78: 22 | F78: 23 | G78: 21 | H78: =SUM((B78:G78-A$3/6)^2/(A$3/6)) -> 2 | I78: =SUM(ABS(B78:G78-A$3/6)) -> 14 | J78: =MAX(ABS(B78:G78-A$3/6)) -> 4 | K78: 7 | L78: =COUNTIF(B78:G78,"<=0.5*A$2/6")+COUNTIF(B78:G78,">=1.5*A$2/6") -> 0 | M78: 6
A79: 75 | B79: =Häufigkeitsverteilung($A$3,B$3,C$3,D$3,E$3,F$3,G$3) -> 25 | C79: 22 | D79: 16 | E79: 23 | F79: 18 | G79: 16 | H79: =SUM((B79:G79-A$3/6)^2/(A$3/6)) -> 3.7 | I79: =SUM(ABS(B79:G79-A$3/6)) -> 20 | J79: =MAX(ABS(B79:G79-A$3/6)) -> 5 | K79: 9 | L79: =COUNTIF(B79:G79,"<=0.5*A$2/6")+COUNTIF(B79:G79,">=1.5*A$2/6") -> 0 | M79: 7
A80: 76 | B80: =Häufigkeitsverteilung($A$3,B$3,C$3,D$3,E$3,F$3,G$3) -> 22 | C80: 13 | D80: 22 | E80: 21 | F80: 20 | G80: 22 | H80: =SUM((B80:G80-A$3/6)^2/(A$3/6)) -> 3.1 | I80: =SUM(ABS(B80:G80-A$3/6)) -> 14 | J80: =MAX(ABS(B80:G80-A$3/6)) -> 7 | K80: 9 | L80: =COUNTIF(B80:G80,"<=0.5*A$2/6")+COUNTIF(B80:G80,">=1.5*A$2/6") -> 0 | M80: 5
A81: 77 | B81: =Häufigkeitsverteilung($A$3,B$3,C$3,D$3,E$3,F$3,G$3) -> 20 | C81: 20 | D81: 20 | E81: 22 | F81: 18 | G81: 20 | H81: =SUM((B81:G81-A$3/6)^2/(A$3/6)) -> 0.4 | I81: =SUM(ABS(B81:G81-A$3/6)) -> 4 | J81: =MAX(ABS(B81:G81-A$3/6)) -> 2 | K81: 4 | L81: =COUNTIF(B81:G81,"<=0.5*A$2/6")+COUNTIF(B81:G81,">=1.5*A$2/6") -> 0 | M81: 2
A82: 78 | B82: =Häufigkeitsverteilung($A$3,B$3,C$3,D$3,E$3,F$3,G$3) -> 17 | C82: 23 | D82: 24 | E82: 18 | F82: 18 | G82: 20 | H82: =SUM((B82:G82-A$3/6)^2/(A$3/6)) -> 2.1 | I82: =SUM(ABS(B82:G82-A$3/6)) -> 14 | J82: =MAX(ABS(B82:G82-A$3/6)) -> 4 | K82: 7 | L82: =COUNTIF(B82:G82,"<=0.5*A$2/6")+COUNTIF(B82:G82,">=1.5*A$2/6") -> 0 | M82: 4
A83: 79 | B83: =Häufigkeitsverteilung($A$3,B$3,C$3,D$3,E$3,F$3,G$3) -> 25 | C83: 18 | D83: 21 | E83: 17 | F83: 18 | G83: 21 | H83: =SUM((B83:G83-A$3/6)^2/(A$3/6)) -> 2.2 | I83: =SUM(ABS(B83:G83-A$3/6)) -> 14 | J83: =MAX(ABS(B83:G83-A$3/6)) -> 5 | K83: 8 | L83: =COUNTIF(B83:G83,"<=0.5*A$2/6")+COUNTIF(B83:G83,">=1.5*A$2/6") -> 0 | M83: 5
A84: 80 | B84: =Häufigkeitsverteilung($A$3,B$3,C$3,D$3,E$3,F$3,G$3) -> 21 | C84: 20 | D84: 16 | E84: 19 | F84: 24 | G84: 20 | H84: =SUM((B84:G84-A$3/6)^2/(A$3/6)) -> 1.7 | I84: =SUM(ABS(B84:G84-A$3/6)) -> 10 | J84: =MAX(ABS(B84:G84-A$3/6)) -> 4 | K84: =MAX(B84:G84)-MIN(B84:G84) -> 8 | L84: =COUNTIF(B84:G84,"<=0.5*A$2/6")+COUNTIF(B84:G84,">=1.5*A$2/6") -> 0 | M84: 4
A85: 81 | B85: =Häufigkeitsverteilung($A$3,B$3,C$3,D$3,E$3,F$3,G$3) -> 12 | C85: 21 | D85: 24 | E85: 24 | F85: 16 | G85: 23 | H85: =SUM((B85:G85-A$3/6)^2/(A$3/6)) -> 6.1 | I85: =SUM(ABS(B85:G85-A$3/6)) -> 24 | J85: =MAX(ABS(B85:G85-A$3/6)) -> 8 | K85: 12 | L85: =COUNTIF(B85:G85,"<=0.5*A$2/6")+COUNTIF(B85:G85,">=1.5*A$2/6") -> 0 | M85: 8
A86: 82 | B86: =Häufigkeitsverteilung($A$3,B$3,C$3,D$3,E$3,F$3,G$3) -> 19 | C86: 29 | D86: 17 | E86: 15 | F86: 25 | G86: 15 | H86: =SUM((B86:G86-A$3/6)^2/(A$3/6)) -> 8.3 | I86: =SUM(ABS(B86:G86-A$3/6)) -> 28 | J86: =MAX(ABS(B86:G86-A$3/6)) -> 9 | K86: 14 | L86: =COUNTIF(B86:G86,"<=0.5*A$2/6")+COUNTIF(B86:G86,">=1.5*A$2/6") -> 0 | M86: 8
A87: 83 | B87: =Häufigkeitsverteilung($A$3,B$3,C$3,D$3,E$3,F$3,G$3) -> 22 | C87: 12 | D87: 19 | E87: 24 | F87: 18 | G87: 25 | H87: =SUM((B87:G87-A$3/6)^2/(A$3/6)) -> 5.7 | I87: =SUM(ABS(B87:G87-A$3/6)) -> 22 | J87: =MAX(ABS(B87:G87-A$3/6)) -> 8 | K87: 13 | L87: =COUNTIF(B87:G87,"<=0.5*A$2/6")+COUNTIF(B87:G87,">=1.5*A$2/6") -> 0 | M87: 7
A88: 84 | B88: =Häufigkeitsverteilung($A$3,B$3,C$3,D$3,E$3,F$3,G$3) -> 18 | C88: 20 | D88: 12 | E88: 24 | F88: 27 | G88: 19 | H88: =SUM((B88:G88-A$3/6)^2/(A$3/6)) -> 6.7 | I88: =SUM(ABS(B88:G88-A$3/6)) -> 22 | J88: =MAX(ABS(B88:G88-A$3/6)) -> 8 | K88: 15 | L88: =COUNTIF(B88:G88,"<=0.5*A$2/6")+COUNTIF(B88:G88,">=1.5*A$2/6") -> 0 | M88: 10
A89: 85 | B89: =Häufigkeitsverteilung($A$3,B$3,C$3,D$3,E$3,F$3,G$3) -> 21 | C89: 27 | D89: 23 | E89: 19 | F89: 12 | G89: 18 | H89: =SUM((B89:G89-A$3/6)^2/(A$3/6)) -> 6.4 | I89: =SUM(ABS(B89:G89-A$3/6)) -> 22 | J89: =MAX(ABS(B89:G89-A$3/6)) -> 8 | K89: 15 | L89: =COUNTIF(B89:G89,"<=0.5*A$2/6")+COUNTIF(B89:G89,">=1.5*A$2/6") -> 0 | M89: 11
A90: 86 | B90: =Häufigkeitsverteilung($A$3,B$3,C$3,D$3,E$3,F$3,G$3) -> 18 | C90: 20 | D90: 22 | E90: 12 | F90: 26 | G90: 22 | H90: =SUM((B90:G90-A$3/6)^2/(A$3/6)) -> 5.6 | I90: =SUM(ABS(B90:G90-A$3/6)) -> 20 | J90: =MAX(ABS(B90:G90-A$3/6)) -> 8 | K90: 14 | L90: =COUNTIF(B90:G90,"<=0.5*A$2/6")+COUNTIF(B90:G90,">=1.5*A$2/6") -> 0 | M90: 8
A91: 87 | B91: =Häufigkeitsverteilung($A$3,B$3,C$3,D$3,E$3,F$3,G$3) -> 15 | C91: 27 | D91: 21 | E91: 22 | F91: 23 | G91: 12 | H91: =SUM((B91:G91-A$3/6)^2/(A$3/6)) -> 7.6 | I91: =SUM(ABS(B91:G91-A$3/6)) -> 26 | J91: =MAX(ABS(B91:G91-A$3/6)) -> 8 | K91: 15 | L91: =COUNTIF(B91:G91,"<=0.5*A$2/6")+COUNTIF(B91:G91,">=1.5*A$2/6") -> 0 | M91: 8
A92: 88 | B92: =Häufigkeitsverteilung($A$3,B$3,C$3,D$3,E$3,F$3,G$3) -> 22 | C92: 17 | D92: 22 | E92: 14 | F92: 28 | G92: 17 | H92: =SUM((B92:G92-A$3/6)^2/(A$3/6)) -> 6.3 | I92: =SUM(ABS(B92:G92-A$3/6)) -> 24 | J92: =MAX(ABS(B92:G92-A$3/6)) -> 8 | K92: 14 | L92: =COUNTIF(B92:G92,"<=0.5*A$2/6")+COUNTIF(B92:G92,">=1.5*A$2/6") -> 0 | M92: 5
A93: 89 | B93: =Häufigkeitsverteilung($A$3,B$3,C$3,D$3,E$3,F$3,G$3) -> 26 | C93: 20 | D93: 23 | E93: 16 | F93: 14 | G93: 21 | H93: =SUM((B93:G93-A$3/6)^2/(A$3/6)) -> 4.9 | I93: =SUM(ABS(B93:G93-A$3/6)) -> 20 | J93: =MAX(ABS(B93:G93-A$3/6)) -> 6 | K93: 12 | L93: =COUNTIF(B93:G93,"<=0.5*A$2/6")+COUNTIF(B93:G93,">=1.5*A$2/6") -> 0 | M93: 9
A94: 90 | B94: =Häufigkeitsverteilung($A$3,B$3,C$3,D$3,E$3,F$3,G$3) -> 23 | C94: 25 | D94: 15 | E94: 17 | F94: 21 | G94: 19 | H94: =SUM((B94:G94-A$3/6)^2/(A$3/6)) -> 3.5 | I94: =SUM(ABS(B94:G94-A$3/6)) -> 18 | J94: =MAX(ABS(B94:G94-A$3/6)) -> 5 | K94: 10 | L94: =COUNTIF(B94:G94,"<=0.5*A$2/6")+COUNTIF(B94:G94,">=1.5*A$2/6") -> 0 | M94: 8
A95: 91 | B95: =Häufigkeitsverteilung($A$3,B$3,C$3,D$3,E$3,F$3,G$3) -> 19 | C95: 25 | D95: 19 | E95: 24 | F95: 15 | G95: 18 | H95: =SUM((B95:G95-A$3/6)^2/(A$3/6)) -> 3.6 | I95: =SUM(ABS(B95:G95-A$3/6)) -> 18 | J95: =MAX(ABS(B95:G95-A$3/6)) -> 5 | K95: 10 | L95: =COUNTIF(B95:G95,"<=0.5*A$2/6")+COUNTIF(B95:G95,">=1.5*A$2/6") -> 0 | M95: 7
A96: 92 | B96: =Häufigkeitsverteilung($A$3,B$3,C$3,D$3,E$3,F$3,G$3) -> 25 | C96: 18 | D96: 15 | E96: 22 | F96: 20 | G96: 20 | H96: =SUM((B96:G96-A$3/6)^2/(A$3/6)) -> 2.9 | I96: =SUM(ABS(B96:G96-A$3/6)) -> 14 | J96: =MAX(ABS(B96:G96-A$3/6)) -> 5 | K96: 10 | L96: =COUNTIF(B96:G96,"<=0.5*A$2/6")+COUNTIF(B96:G96,">=1.5*A$2/6") -> 0 | M96: 5
A97: 93 | B97: =Häufigkeitsverteilung($A$3,B$3,C$3,D$3,E$3,F$3,G$3) -> 19 | C97: 26 | D97: 23 | E97: 13 | F97: 19 | G97: 20 | H97: =SUM((B97:G97-A$3/6)^2/(A$3/6)) -> 4.8 | I97: =SUM(ABS(B97:G97-A$3/6)) -> 18 | J97: =MAX(ABS(B97:G97-A$3/6)) -> 7 | K97: 13 | L97: =COUNTIF(B97:G97,"<=0.5*A$2/6")+COUNTIF(B97:G97,">=1.5*A$2/6") -> 0 | M97: 8
A98: 94 | B98: =Häufigkeitsverteilung($A$3,B$3,C$3,D$3,E$3,F$3,G$3) -> 29 | C98: 16 | D98: 22 | E98: 21 | F98: 11 | G98: 21 | H98: =SUM((B98:G98-A$3/6)^2/(A$3/6)) -> 9.2 | I98: =SUM(ABS(B98:G98-A$3/6)) -> 26 | J98: =MAX(ABS(B98:G98-A$3/6)) -> 9 | K98: 18 | L98: =COUNTIF(B98:G98,"<=0.5*A$2/6")+COUNTIF(B98:G98,">=1.5*A$2/6") -> 0 | M98: 9
A99: 95 | B99: =Häufigkeitsverteilung($A$3,B$3,C$3,D$3,E$3,F$3,G$3) -> 17 | C99: 27 | D99: 20 | E99: 19 | F99: 21 | G99: 16 | H99: =SUM((B99:G99-A$3/6)^2/(A$3/6)) -> 3.8 | I99: =SUM(ABS(B99:G99-A$3/6)) -> 16 | J99: =MAX(ABS(B99:G99-A$3/6)) -> 7 | K99: 11 | L99: =COUNTIF(B99:G99,"<=0.5*A$2/6")+COUNTIF(B99:G99,">=1.5*A$2/6") -> 0 | M99: 4
A100: 96 | B100: =Häufigkeitsverteilung($A$3,B$3,C$3,D$3,E$3,F$3,G$3) -> 24 | C100: 20 | D100: 20 | E100: 21 | F100: 16 | G100: 19 | H100: =SUM((B100:G100-A$3/6)^2/(A$3/6)) -> 1.7 | I100: =SUM(ABS(B100:G100-A$3/6)) -> 10 | J100: =MAX(ABS(B100:G100-A$3/6)) -> 4 | K100: 8 | L100: =COUNTIF(B100:G100,"<=0.5*A$2/6")+COUNTIF(B100:G100,">=1.5*A$2/6") -> 0 | M100: 5
A101: 97 | B101: =Häufigkeitsverteilung($A$3,B$3,C$3,D$3,E$3,F$3,G$3) -> 17 | C101: 24 | D101: 20 | E101: 19 | F101: 21 | G101: 19 | H101: =SUM((B101:G101-A$3/6)^2/(A$3/6)) -> 1.4 | I101: =SUM(ABS(B101:G101-A$3/6)) -> 10 | J101: =MAX(ABS(B101:G101-A$3/6)) -> 4 | K101: 7 | L101: =COUNTIF(B101:G101,"<=0.5*A$2/6")+COUNTIF(B101:G101,">=1.5*A$2/6") -> 0 | M101: 3
A102: 98 | B102: =Häufigkeitsverteilung($A$3,B$3,C$3,D$3,E$3,F$3,G$3) -> 24 | C102: 17 | D102: 20 | E102: 13 | F102: 19 | G102: 27 | H102: =SUM((B102:G102-A$3/6)^2/(A$3/6)) -> 6.2 | I102: =SUM(ABS(B102:G102-A$3/6)) -> 22 | J102: =MAX(ABS(B102:G102-A$3/6)) -> 7 | K102: 14 | L102: =COUNTIF(B102:G102,"<=0.5*A$2/6")+COUNTIF(B102:G102,">=1.5*A$2/6") -> 0 | M102: 7
A103: 99 | B103: =Häufigkeitsverteilung($A$3,B$3,C$3,D$3,E$3,F$3,G$3) -> 24 | C103: 17 | D103: 21 | E103: 24 | F103: 17 | G103: 17 | H103: =SUM((B103:G103-A$3/6)^2/(A$3/6)) -> 3 | I103: =SUM(ABS(B103:G103-A$3/6)) -> 18 | J103: =MAX(ABS(B103:G103-A$3/6)) -> 4 | K103: 7 | L103: =COUNTIF(B103:G103,"<=0.5*A$2/6")+COUNTIF(B103:G103,">=1.5*A$2/6") -> 0 | M103: 6
A104: 100 | B104: =Häufigkeitsverteilung($A$3,B$3,C$3,D$3,E$3,F$3,G$3) -> 23 | C104: 16 | D104: 22 | E104: 11 | F104: 21 | G104: 27 | H104: =SUM((B104:G104-A$3/6)^2/(A$3/6)) -> 8 | I104: =SUM(ABS(B104:G104-A$3/6)) -> 26 | J104: =MAX(ABS(B104:G104-A$3/6)) -> 9 | K104: 16 | L104: =COUNTIF(B104:G104,"<=0.5*A$2/6")+COUNTIF(B104:G104,">=1.5*A$2/6") -> 0 | M104: 8
A105: 101 | B105: =Häufigkeitsverteilung($A$3,B$3,C$3,D$3,E$3,F$3,G$3) -> 21 | C105: 18 | D105: 30 | E105: 20 | F105: 9 | G105: 22 | H105: =SUM((B105:G105-A$3/6)^2/(A$3/6)) -> 11.5 | I105: =SUM(ABS(B105:G105-A$3/6)) -> 26 | J105: =MAX(ABS(B105:G105-A$3/6)) -> 11 | K105: 21 | L105: =COUNTIF(B105:G105,"<=0.5*A$2/6")+COUNTIF(B105:G105,">=1.5*A$2/6") -> 0 | M105: 9
A106: 102 | B106: =Häufigkeitsverteilung($A$3,B$3,C$3,D$3,E$3,F$3,G$3) -> 22 | C106: 21 | D106: 22 | E106: 16 | F106: 20 | G106: 19 | H106: =SUM((B106:G106-A$3/6)^2/(A$3/6)) -> 1.3 | I106: =SUM(ABS(B106:G106-A$3/6)) -> 10 | J106: =MAX(ABS(B106:G106-A$3/6)) -> 4 | K106: 6 | L106: =COUNTIF(B106:G106,"<=0.5*A$2/6")+COUNTIF(B106:G106,">=1.5*A$2/6") -> 0 | M106: 5
A107: 103 | B107: =Häufigkeitsverteilung($A$3,B$3,C$3,D$3,E$3,F$3,G$3) -> 11 | C107: 18 | D107: 27 | E107: 24 | F107: 20 | G107: 20 | H107: =SUM((B107:G107-A$3/6)^2/(A$3/6)) -> 7.5 | I107: =SUM(ABS(B107:G107-A$3/6)) -> 22 | J107: =MAX(ABS(B107:G107-A$3/6)) -> 9 | K107: 16 | L107: =COUNTIF(B107:G107,"<=0.5*A$2/6")+COUNTIF(B107:G107,">=1.5*A$2/6") -> 0 | M107: 11
A108: 104 | B108: =Häufigkeitsverteilung($A$3,B$3,C$3,D$3,E$3,F$3,G$3) -> 18 | C108: 21 | D108: 20 | E108: 24 | F108: 19 | G108: 18 | H108: =SUM((B108:G108-A$3/6)^2/(A$3/6)) -> 1.3 | I108: =SUM(ABS(B108:G108-A$3/6)) -> 10 | J108: =MAX(ABS(B108:G108-A$3/6)) -> 4 | K108: 6 | L108: =COUNTIF(B108:G108,"<=0.5*A$2/6")+COUNTIF(B108:G108,">=1.5*A$2/6") -> 0 | M108: 3
A109: 105 | B109: =Häufigkeitsverteilung($A$3,B$3,C$3,D$3,E$3,F$3,G$3) -> 15 | C109: 27 | D109: 16 | E109: 24 | F109: 17 | G109: 21 | H109: =SUM((B109:G109-A$3/6)^2/(A$3/6)) -> 5.8 | I109: =SUM(ABS(B109:G109-A$3/6)) -> 24 | J109: =MAX(ABS(B109:G109-A$3/6)) -> 7 | K109: 12 | L109: =COUNTIF(B109:G109,"<=0.5*A$2/6")+COUNTIF(B109:G109,">=1.5*A$2/6") -> 0 | M109: 5
A110: 106 | B110: =Häufigkeitsverteilung($A$3,B$3,C$3,D$3,E$3,F$3,G$3) -> 25 | C110: 24 | D110: 22 | E110: 13 | F110: 23 | G110: 13 | H110: =SUM((B110:G110-A$3/6)^2/(A$3/6)) -> 7.6 | I110: =SUM(ABS(B110:G110-A$3/6)) -> 28 | J110: =MAX(ABS(B110:G110-A$3/6)) -> 7 | K110: 12 | L110: =COUNTIF(B110:G110,"<=0.5*A$2/6")+COUNTIF(B110:G110,">=1.5*A$2/6") -> 0 | M110: 11
A111: 107 | B111: =Häufigkeitsverteilung($A$3,B$3,C$3,D$3,E$3,F$3,G$3) -> 18 | C111: 22 | D111: 21 | E111: 14 | F111: 24 | G111: 21 | H111: =SUM((B111:G111-A$3/6)^2/(A$3/6)) -> 3.1 | I111: =SUM(ABS(B111:G111-A$3/6)) -> 16 | J111: =MAX(ABS(B111:G111-A$3/6)) -> 6 | K111: 10 | L111: =COUNTIF(B111:G111,"<=0.5*A$2/6")+COUNTIF(B111:G111,">=1.5*A$2/6") -> 0 | M111: 5
A112: 108 | B112: =Häufigkeitsverteilung($A$3,B$3,C$3,D$3,E$3,F$3,G$3) -> 16 | C112: 17 | D112: 22 | E112: 25 | F112: 24 | G112: 16 | H112: =SUM((B112:G112-A$3/6)^2/(A$3/6)) -> 4.3 | I112: =SUM(ABS(B112:G112-A$3/6)) -> 22 | J112: =MAX(ABS(B112:G112-A$3/6)) -> 5 | K112: 9 | L112: =COUNTIF(B112:G112,"<=0.5*A$2/6")+COUNTIF(B112:G112,">=1.5*A$2/6") -> 0 | M112: 7
A113: 109 | B113: =Häufigkeitsverteilung($A$3,B$3,C$3,D$3,E$3,F$3,G$3) -> 20 | C113: 15 | D113: 17 | E113: 26 | F113: 20 | G113: 22 | H113: =SUM((B113:G113-A$3/6)^2/(A$3/6)) -> 3.7 | I113: =SUM(ABS(B113:G113-A$3/6)) -> 16 | J113: =MAX(ABS(B113:G113-A$3/6)) -> 6 | K113: 11 | L113: =COUNTIF(B113:G113,"<=0.5*A$2/6")+COUNTIF(B113:G113,">=1.5*A$2/6") -> 0 | M113: 8
A114: 110 | B114: =Häufigkeitsverteilung($A$3,B$3,C$3,D$3,E$3,F$3,G$3) -> 12 | C114: 23 | D114: 23 | E114: 24 | F114: 20 | G114: 18 | H114: =SUM((B114:G114-A$3/6)^2/(A$3/6)) -> 5.1 | I114: =SUM(ABS(B114:G114-A$3/6)) -> 20 | J114: =MAX(ABS(B114:G114-A$3/6)) -> 8 | K114: 12 | L114: =COUNTIF(B114:G114,"<=0.5*A$2/6")+COUNTIF(B114:G114,">=1.5*A$2/6") -> 0 | M114: 8
A115: 111 | B115: =Häufigkeitsverteilung($A$3,B$3,C$3,D$3,E$3,F$3,G$3) -> 23 | C115: 24 | D115: 9 | E115: 22 | F115: 24 | G115: 18 | H115: =SUM((B115:G115-A$3/6)^2/(A$3/6)) -> 8.5 | I115: =SUM(ABS(B115:G115-A$3/6)) -> 26 | J115: =MAX(ABS(B115:G115-A$3/6)) -> 11 | K115: 15 | L115: =COUNTIF(B115:G115,"<=0.5*A$2/6")+COUNTIF(B115:G115,">=1.5*A$2/6") -> 0 | M115: 7
A116: 112 | B116: =Häufigkeitsverteilung($A$3,B$3,C$3,D$3,E$3,F$3,G$3) -> 24 | C116: 8 | D116: 19 | E116: 24 | F116: 22 | G116: 23 | H116: =SUM((B116:G116-A$3/6)^2/(A$3/6)) -> 9.5 | I116: =SUM(ABS(B116:G116-A$3/6)) -> 26 | J116: =MAX(ABS(B116:G116-A$3/6)) -> 12 | K116: 16 | L116: =COUNTIF(B116:G116,"<=0.5*A$2/6")+COUNTIF(B116:G116,">=1.5*A$2/6") -> 0 | M116: 9
A117: 113 | B117: =Häufigkeitsverteilung($A$3,B$3,C$3,D$3,E$3,F$3,G$3) -> 12 | C117: 25 | D117: 27 | E117: 19 | F117: 21 | G117: 16 | H117: =SUM((B117:G117-A$3/6)^2/(A$3/6)) -> 7.8 | I117: =SUM(ABS(B117:G117-A$3/6)) -> 26 | J117: =MAX(ABS(B117:G117-A$3/6)) -> 8 | K117: 15 | L117: =COUNTIF(B117:G117,"<=0.5*A$2/6")+COUNTIF(B117:G117,">=1.5*A$2/6") -> 0 | M117: 8
A118: 114 | B118: =Häufigkeitsverteilung($A$3,B$3,C$3,D$3,E$3,F$3,G$3) -> 20 | C118: 22 | D118: 27 | E118: 19 | F118: 16 | G118: 16 | H118: =SUM((B118:G118-A$3/6)^2/(A$3/6)) -> 4.3 | I118: =SUM(ABS(B118:G118-A$3/6)) -> 18 | J118: =MAX(ABS(B118:G118-A$3/6)) -> 7 | K118: 11 | L118: =COUNTIF(B118:G118,"<=0.5*A$2/6")+COUNTIF(B118:G118,">=1.5*A$2/6") -> 0 | M118: 9
A119: 115 | B119: =Häufigkeitsverteilung($A$3,B$3,C$3,D$3,E$3,F$3,G$3) -> 15 | C119: 22 | D119: 26 | E119: 14 | F119: 22 | G119: 21 | H119: =SUM((B119:G119-A$3/6)^2/(A$3/6)) -> 5.3 | I119: =SUM(ABS(B119:G119-A$3/6)) -> 22 | J119: =MAX(ABS(B119:G119-A$3/6)) -> 6 | K119: 12 | L119: =COUNTIF(B119:G119,"<=0.5*A$2/6")+COUNTIF(B119:G119,">=1.5*A$2/6") -> 0 | M119: 5
A120: 116 | B120: =Häufigkeitsverteilung($A$3,B$3,C$3,D$3,E$3,F$3,G$3) -> 26 | C120: 10 | D120: 21 | E120: 15 | F120: 21 | G120: 27 | H120: =SUM((B120:G120-A$3/6)^2/(A$3/6)) -> 10.6 | I120: =SUM(ABS(B120:G120-A$3/6)) -> 30 | J120: =MAX(ABS(B120:G120-A$3/6)) -> 10 | K120: 17 | L120: =COUNTIF(B120:G120,"<=0.5*A$2/6")+COUNTIF(B120:G120,">=1.5*A$2/6") -> 0 | M120: 8
A121: 117 | B121: =Häufigkeitsverteilung($A$3,B$3,C$3,D$3,E$3,F$3,G$3) -> 20 | C121: 16 | D121: 28 | E121: 11 | F121: 26 | G121: 19 | H121: =SUM((B121:G121-A$3/6)^2/(A$3/6)) -> 9.9 | I121: =SUM(ABS(B121:G121-A$3/6)) -> 28 | J121: =MAX(ABS(B121:G121-A$3/6)) -> 9 | K121: 17 | L121: =COUNTIF(B121:G121,"<=0.5*A$2/6")+COUNTIF(B121:G121,">=1.5*A$2/6") -> 0 | M121: 5
A122: 118 | B122: =Häufigkeitsverteilung($A$3,B$3,C$3,D$3,E$3,F$3,G$3) -> 18 | C122: 20 | D122: 22 | E122: 15 | F122: 20 | G122: 25 | H122: =SUM((B122:G122-A$3/6)^2/(A$3/6)) -> 2.9 | I122: =SUM(ABS(B122:G122-A$3/6)) -> 14 | J122: =MAX(ABS(B122:G122-A$3/6)) -> 5 | K122: 10 | L122: =COUNTIF(B122:G122,"<=0.5*A$2/6")+COUNTIF(B122:G122,">=1.5*A$2/6") -> 0 | M122: 5
A123: 119 | B123: =Häufigkeitsverteilung($A$3,B$3,C$3,D$3,E$3,F$3,G$3) -> 18 | C123: 27 | D123: 23 | E123: 17 | F123: 19 | G123: 16 | H123: =SUM((B123:G123-A$3/6)^2/(A$3/6)) -> 4.4 | I123: =SUM(ABS(B123:G123-A$3/6)) -> 20 | J123: =MAX(ABS(B123:G123-A$3/6)) -> 7 | K123: 11 | L123: =COUNTIF(B123:G123,"<=0.5*A$2/6")+COUNTIF(B123:G123,">=1.5*A$2/6") -> 0 | M123: 8
A124: 120 | B124: =Häufigkeitsverteilung($A$3,B$3,C$3,D$3,E$3,F$3,G$3) -> 21 | C124: 15 | D124: 22 | E124: 20 | F124: 20 | G124: 22 | H124: =SUM((B124:G124-A$3/6)^2/(A$3/6)) -> 1.7 | I124: =SUM(ABS(B124:G124-A$3/6)) -> 10 | J124: =MAX(ABS(B124:G124-A$3/6)) -> 5 | K124: 7 | L124: =COUNTIF(B124:G124,"<=0.5*A$2/6")+COUNTIF(B124:G124,">=1.5*A$2/6") -> 0 | M124: 4
A125: 121 | B125: =Häufigkeitsverteilung($A$3,B$3,C$3,D$3,E$3,F$3,G$3) -> 21 | C125: 19 | D125: 23 | E125: 16 | F125: 19 | G125: 22 | H125: =SUM((B125:G125-A$3/6)^2/(A$3/6)) -> 1.6 | I125: =SUM(ABS(B125:G125-A$3/6)) -> 12 | J125: =MAX(ABS(B125:G125-A$3/6)) -> 4 | K125: 7 | L125: =COUNTIF(B125:G125,"<=0.5*A$2/6")+COUNTIF(B125:G125,">=1.5*A$2/6") -> 0 | M125: 3
A126: 122 | B126: =Häufigkeitsverteilung($A$3,B$3,C$3,D$3,E$3,F$3,G$3) -> 14 | C126: 29 | D126: 19 | E126: 23 | F126: 17 | G126: 18 | H126: =SUM((B126:G126-A$3/6)^2/(A$3/6)) -> 7 | I126: =SUM(ABS(B126:G126-A$3/6)) -> 24 | J126: =MAX(ABS(B126:G126-A$3/6)) -> 9 | K126: 15 | L126: =COUNTIF(B126:G126,"<=0.5*A$2/6")+COUNTIF(B126:G126,">=1.5*A$2/6") -> 0 | M126: 6
A127: 123 | B127: =Häufigkeitsverteilung($A$3,B$3,C$3,D$3,E$3,F$3,G$3) -> 21 | C127: 11 | D127: 20 | E127: 20 | F127: 23 | G127: 25 | H127: =SUM((B127:G127-A$3/6)^2/(A$3/6)) -> 5.8 | I127: =SUM(ABS(B127:G127-A$3/6)) -> 18 | J127: =MAX(ABS(B127:G127-A$3/6)) -> 9 | K127: 14 | L127: =COUNTIF(B127:G127,"<=0.5*A$2/6")+COUNTIF(B127:G127,">=1.5*A$2/6") -> 0 | M127: 8
A128: 124 | B128: =Häufigkeitsverteilung($A$3,B$3,C$3,D$3,E$3,F$3,G$3) -> 21 | C128: 23 | D128: 13 | E128: 24 | F128: 17 | G128: 22 | H128: =SUM((B128:G128-A$3/6)^2/(A$3/6)) -> 4.4 | I128: =SUM(ABS(B128:G128-A$3/6)) -> 20 | J128: =MAX(ABS(B128:G128-A$3/6)) -> 7 | K128: 11 | L128: =COUNTIF(B128:G128,"<=0.5*A$2/6")+COUNTIF(B128:G128,">=1.5*A$2/6") -> 0 | M128: 4
A129: 125 | B129: =Häufigkeitsverteilung($A$3,B$3,C$3,D$3,E$3,F$3,G$3) -> 18 | C129: 17 | D129: 22 | E129: 29 | F129: 17 | G129: 17 | H129: =SUM((B129:G129-A$3/6)^2/(A$3/6)) -> 5.8 | I129: =SUM(ABS(B129:G129-A$3/6)) -> 22 | J129: =MAX(ABS(B129:G129-A$3/6)) -> 9 | K129: 12 | L129: =COUNTIF(B129:G129,"<=0.5*A$2/6")+COUNTIF(B129:G129,">=1.5*A$2/6") -> 0 | M129: 6
A130: 126 | B130: =Häufigkeitsverteilung($A$3,B$3,C$3,D$3,E$3,F$3,G$3) -> 17 | C130: 20 | D130: 20 | E130: 27 | F130: 24 | G130: 12 | H130: =SUM((B130:G130-A$3/6)^2/(A$3/6)) -> 6.9 | I130: =SUM(ABS(B130:G130-A$3/6)) -> 22 | J130: =MAX(ABS(B130:G130-A$3/6)) -> 8 | K130: 15 | L130: =COUNTIF(B130:G130,"<=0.5*A$2/6")+COUNTIF(B130:G130,">=1.5*A$2/6") -> 0 | M130: 8
A131: 127 | B131: =Häufigkeitsverteilung($A$3,B$3,C$3,D$3,E$3,F$3,G$3) -> 30 | C131: 14 | D131: 15 | E131: 18 | F131: 22 | G131: 21 | H131: =SUM((B131:G131-A$3/6)^2/(A$3/6)) -> 8.5 | I131: =SUM(ABS(B131:G131-A$3/6)) -> 26 | J131: =MAX(ABS(B131:G131-A$3/6)) -> 10 | K131: 16 | L131: =COUNTIF(B131:G131,"<=0.5*A$2/6")+COUNTIF(B131:G131,">=1.5*A$2/6") -> 0 | M131: 10
A132: 128 | B132: =Häufigkeitsverteilung($A$3,B$3,C$3,D$3,E$3,F$3,G$3) -> 18 | C132: 20 | D132: 13 | E132: 27 | F132: 20 | G132: 22 | H132: =SUM((B132:G132-A$3/6)^2/(A$3/6)) -> 5.3 | I132: =SUM(ABS(B132:G132-A$3/6)) -> 18 | J132: =MAX(ABS(B132:G132-A$3/6)) -> 7 | K132: 14 | L132: =COUNTIF(B132:G132,"<=0.5*A$2/6")+COUNTIF(B132:G132,">=1.5*A$2/6") -> 0 | M132: 9
A133: 129 | B133: =Häufigkeitsverteilung($A$3,B$3,C$3,D$3,E$3,F$3,G$3) -> 19 | C133: 22 | D133: 19 | E133: 14 | F133: 19 | G133: 27 | H133: =SUM((B133:G133-A$3/6)^2/(A$3/6)) -> 4.6 | I133: =SUM(ABS(B133:G133-A$3/6)) -> 18 | J133: =MAX(ABS(B133:G133-A$3/6)) -> 7 | K133: 13 | L133: =COUNTIF(B133:G133,"<=0.5*A$2/6")+COUNTIF(B133:G133,">=1.5*A$2/6") -> 0 | M133: 7
A134: 130 | B134: =Häufigkeitsverteilung($A$3,B$3,C$3,D$3,E$3,F$3,G$3) -> 17 | C134: 23 | D134: 20 | E134: 18 | F134: 27 | G134: 15 | H134: =SUM((B134:G134-A$3/6)^2/(A$3/6)) -> 4.8 | I134: =SUM(ABS(B134:G134-A$3/6)) -> 20 | J134: =MAX(ABS(B134:G134-A$3/6)) -> 7 | K134: 12 | L134: =COUNTIF(B134:G134,"<=0.5*A$2/6")+COUNTIF(B134:G134,">=1.5*A$2/6") -> 0 | M134: =MAX(ABS(B134-$A$3/6),ABS(SUM(B134:C134)-2*$A$3/6),ABS(SUM(B134:D134)-3*$A$3/6),ABS(SUM(B134:E134)-4*$A$3/6),ABS(SUM(B134:F134)-5*$A$3/6)) -> 5
A135: 131 | B135: =Häufigkeitsverteilung($A$3,B$3,C$3,D$3,E$3,F$3,G$3) -> 14 | C135: 26 | D135: 22 | E135: 18 | F135: 15 | G135: 25 | H135: =SUM((B135:G135-A$3/6)^2/(A$3/6)) -> 6.5 | I135: =SUM(ABS(B135:G135-A$3/6)) -> 26 | J135: =MAX(ABS(B135:G135-A$3/6)) -> 6 | K135: 12 | L135: =COUNTIF(B135:G135,"<=0.5*A$2/6")+COUNTIF(B135:G135,">=1.5*A$2/6") -> 0 | M135: 6
A136: 132 | B136: =Häufigkeitsverteilung($A$3,B$3,C$3,D$3,E$3,F$3,G$3) -> 26 | C136: 19 | D136: 23 | E136: 13 | F136: 21 | G136: 18 | H136: =SUM((B136:G136-A$3/6)^2/(A$3/6)) -> 5 | I136: =SUM(ABS(B136:G136-A$3/6)) -> 20 | J136: =MAX(ABS(B136:G136-A$3/6)) -> 7 | K136: 13 | L136: =COUNTIF(B136:G136,"<=0.5*A$2/6")+COUNTIF(B136:G136,">=1.5*A$2/6") -> 0 | M136: 8
A137: 133 | B137: =Häufigkeitsverteilung($A$3,B$3,C$3,D$3,E$3,F$3,G$3) -> 25 | C137: 21 | D137: 23 | E137: 15 | F137: 16 | G137: 20 | H137: =SUM((B137:G137-A$3/6)^2/(A$3/6)) -> 3.8 | I137: =SUM(ABS(B137:G137-A$3/6)) -> 18 | J137: =MAX(ABS(B137:G137-A$3/6)) -> 5 | K137: 10 | L137: =COUNTIF(B137:G137,"<=0.5*A$2/6")+COUNTIF(B137:G137,">=1.5*A$2/6") -> 0 | M137: 9
A138: 134 | B138: =Häufigkeitsverteilung($A$3,B$3,C$3,D$3,E$3,F$3,G$3) -> 19 | C138: 19 | D138: 17 | E138: 23 | F138: 20 | G138: 22 | H138: =SUM((B138:G138-A$3/6)^2/(A$3/6)) -> 1.2 | I138: =SUM(ABS(B138:G138-A$3/6)) -> 10 | J138: =MAX(ABS(B138:G138-A$3/6)) -> 3 | K138: 6 | L138: =COUNTIF(B138:G138,"<=0.5*A$2/6")+COUNTIF(B138:G138,">=1.5*A$2/6") -> 0 | M138: 5
A139: 135 | B139: =Häufigkeitsverteilung($A$3,B$3,C$3,D$3,E$3,F$3,G$3) -> 18 | C139: 18 | D139: 27 | E139: 14 | F139: 25 | G139: 18 | H139: =SUM((B139:G139-A$3/6)^2/(A$3/6)) -> 6.1 | I139: =SUM(ABS(B139:G139-A$3/6)) -> 24 | J139: =MAX(ABS(B139:G139-A$3/6)) -> 7 | K139: 13 | L139: =COUNTIF(B139:G139,"<=0.5*A$2/6")+COUNTIF(B139:G139,">=1.5*A$2/6") -> 0 | M139: 4
A140: 136 | B140: =Häufigkeitsverteilung($A$3,B$3,C$3,D$3,E$3,F$3,G$3) -> 20 | C140: 17 | D140: 22 | E140: 20 | F140: 20 | G140: 21 | H140: =SUM((B140:G140-A$3/6)^2/(A$3/6)) -> 0.7 | I140: =SUM(ABS(B140:G140-A$3/6)) -> 6 | J140: =MAX(ABS(B140:G140-A$3/6)) -> 3 | K140: 5 | L140: =COUNTIF(B140:G140,"<=0.5*A$2/6")+COUNTIF(B140:G140,">=1.5*A$2/6") -> 0 | M140: 3
A141: 137 | B141: =Häufigkeitsverteilung($A$3,B$3,C$3,D$3,E$3,F$3,G$3) -> 10 | C141: 19 | D141: 21 | E141: 24 | F141: 18 | G141: 28 | H141: =SUM((B141:G141-A$3/6)^2/(A$3/6)) -> 9.3 | I141: =SUM(ABS(B141:G141-A$3/6)) -> 26 | J141: =MAX(ABS(B141:G141-A$3/6)) -> 10 | K141: 18 | L141: =COUNTIF(B141:G141,"<=0.5*A$2/6")+COUNTIF(B141:G141,">=1.5*A$2/6") -> 0 | M141: 11
A142: 138 | B142: =Häufigkeitsverteilung($A$3,B$3,C$3,D$3,E$3,F$3,G$3) -> 20 | C142: 19 | D142: 17 | E142: 18 | F142: 21 | G142: 25 | H142: =SUM((B142:G142-A$3/6)^2/(A$3/6)) -> 2 | I142: =SUM(ABS(B142:G142-A$3/6)) -> 12 | J142: =MAX(ABS(B142:G142-A$3/6)) -> 5 | K142: 8 | L142: =COUNTIF(B142:G142,"<=0.5*A$2/6")+COUNTIF(B142:G142,">=1.5*A$2/6") -> 0 | M142: 6
A143: 139 | B143: =Häufigkeitsverteilung($A$3,B$3,C$3,D$3,E$3,F$3,G$3) -> 13 | C143: 23 | D143: 14 | E143: 29 | F143: 22 | G143: 19 | H143: =SUM((B143:G143-A$3/6)^2/(A$3/6)) -> 9 | I143: =SUM(ABS(B143:G143-A$3/6)) -> 28 | J143: =MAX(ABS(B143:G143-A$3/6)) -> 9 | K143: 16 | L143: =COUNTIF(B143:G143,"<=0.5*A$2/6")+COUNTIF(B143:G143,">=1.5*A$2/6") -> 0 | M143: 10
A144: 140 | B144: =Häufigkeitsverteilung($A$3,B$3,C$3,D$3,E$3,F$3,G$3) -> 15 | C144: 20 | D144: 24 | E144: 27 | F144: 15 | G144: 19 | H144: =SUM((B144:G144-A$3/6)^2/(A$3/6)) -> 5.8 | I144: =SUM(ABS(B144:G144-A$3/6)) -> 22 | J144: =MAX(ABS(B144:G144-A$3/6)) -> 7 | K144: 12 | L144: =COUNTIF(B144:G144,"<=0.5*A$2/6")+COUNTIF(B144:G144,">=1.5*A$2/6") -> 0 | M144: 6
A145: 141 | B145: =Häufigkeitsverteilung($A$3,B$3,C$3,D$3,E$3,F$3,G$3) -> 25 | C145: 22 | D145: 23 | E145: 18 | F145: 22 | G145: 10 | H145: =SUM((B145:G145-A$3/6)^2/(A$3/6)) -> 7.3 | I145: =SUM(ABS(B145:G145-A$3/6)) -> 24 | J145: =MAX(ABS(B145:G145-A$3/6)) -> 10 | K145: 15 | L145: =COUNTIF(B145:G145,"<=0.5*A$2/6")+COUNTIF(B145:G145,">=1.5*A$2/6") -> 0 | M145: 10
A146: 142 | B146: =Häufigkeitsverteilung($A$3,B$3,C$3,D$3,E$3,F$3,G$3) -> 24 | C146: 21 | D146: 13 | E146: 21 | F146: 21 | G146: 20 | H146: =SUM((B146:G146-A$3/6)^2/(A$3/6)) -> 3.4 | I146: =SUM(ABS(B146:G146-A$3/6)) -> 14 | J146: =MAX(ABS(B146:G146-A$3/6)) -> 7 | K146: 11 | L146: =COUNTIF(B146:G146,"<=0.5*A$2/6")+COUNTIF(B146:G146,">=1.5*A$2/6") -> 0 | M146: 5
A147: 143 | B147: =Häufigkeitsverteilung($A$3,B$3,C$3,D$3,E$3,F$3,G$3) -> 22 | C147: 19 | D147: 16 | E147: 19 | F147: 21 | G147: 23 | H147: =SUM((B147:G147-A$3/6)^2/(A$3/6)) -> 1.6 | I147: =SUM(ABS(B147:G147-A$3/6)) -> 12 | J147: =MAX(ABS(B147:G147-A$3/6)) -> 4 | K147: 7 | L147: =COUNTIF(B147:G147,"<=0.5*A$2/6")+COUNTIF(B147:G147,">=1.5*A$2/6") -> 0 | M147: 4
A148: 144 | B148: =Häufigkeitsverteilung($A$3,B$3,C$3,D$3,E$3,F$3,G$3) -> 21 | C148: 20 | D148: 21 | E148: 22 | F148: 22 | G148: 14 | H148: =SUM((B148:G148-A$3/6)^2/(A$3/6)) -> 2.3 | I148: =SUM(ABS(B148:G148-A$3/6)) -> 12 | J148: =MAX(ABS(B148:G148-A$3/6)) -> 6 | K148: =MAX(B148:G148)-MIN(B148:G148) -> 8 | L148: =COUNTIF(B148:G148,"<=0.5*A$2/6")+COUNTIF(B148:G148,">=1.5*A$2/6") -> 0 | M148: 6
A149: 145 | B149: =Häufigkeitsverteilung($A$3,B$3,C$3,D$3,E$3,F$3,G$3) -> 23 | C149: 16 | D149: 19 | E149: 16 | F149: 22 | G149: 24 | H149: =SUM((B149:G149-A$3/6)^2/(A$3/6)) -> 3.1 | I149: =SUM(ABS(B149:G149-A$3/6)) -> 18 | J149: =MAX(ABS(B149:G149-A$3/6)) -> 4 | K149: 8 | L149: =COUNTIF(B149:G149,"<=0.5*A$2/6")+COUNTIF(B149:G149,">=1.5*A$2/6") -> 0 | M149: 6
A150: 146 | B150: =Häufigkeitsverteilung($A$3,B$3,C$3,D$3,E$3,F$3,G$3) -> 22 | C150: 19 | D150: 12 | E150: 19 | F150: 21 | G150: 27 | H150: =SUM((B150:G150-A$3/6)^2/(A$3/6)) -> 6 | I150: =SUM(ABS(B150:G150-A$3/6)) -> 20 | J150: =MAX(ABS(B150:G150-A$3/6)) -> 8 | K150: 15 | L150: =COUNTIF(B150:G150,"<=0.5*A$2/6")+COUNTIF(B150:G150,">=1.5*A$2/6") -> 0 | M150: 8
A151: 147 | B151: =Häufigkeitsverteilung($A$3,B$3,C$3,D$3,E$3,F$3,G$3) -> 15 | C151: 26 | D151: 18 | E151: 23 | F151: 22 | G151: 16 | H151: =SUM((B151:G151-A$3/6)^2/(A$3/6)) -> 4.7 | I151: =SUM(ABS(B151:G151-A$3/6)) -> 22 | J151: =MAX(ABS(B151:G151-A$3/6)) -> 6 | K151: 11 | L151: =COUNTIF(B151:G151,"<=0.5*A$2/6")+COUNTIF(B151:G151,">=1.5*A$2/6") -> 0 | M151: 5
A152: 148 | B152: =Häufigkeitsverteilung($A$3,B$3,C$3,D$3,E$3,F$3,G$3) -> 21 | C152: 17 | D152: 26 | E152: 15 | F152: 25 | G152: 16 | H152: =SUM((B152:G152-A$3/6)^2/(A$3/6)) -> 5.6 | I152: =SUM(ABS(B152:G152-A$3/6)) -> 24 | J152: =MAX(ABS(B152:G152-A$3/6)) -> 6 | K152: 11 | L152: =COUNTIF(B152:G152,"<=0.5*A$2/6")+COUNTIF(B152:G152,">=1.5*A$2/6") -> 0 | M152: 4
A153: 149 | B153: =Häufigkeitsverteilung($A$3,B$3,C$3,D$3,E$3,F$3,G$3) -> 22 | C153: 15 | D153: 22 | E153: 16 | F153: 19 | G153: 26 | H153: =SUM((B153:G153-A$3/6)^2/(A$3/6)) -> 4.3 | I153: =SUM(ABS(B153:G153-A$3/6)) -> 20 | J153: =MAX(ABS(B153:G153-A$3/6)) -> 6 | K153: 11 | L153: =COUNTIF(B153:G153,"<=0.5*A$2/6")+COUNTIF(B153:G153,">=1.5*A$2/6") -> 0 | M153: 6
A154: 150 | B154: =Häufigkeitsverteilung($A$3,B$3,C$3,D$3,E$3,F$3,G$3) -> 17 | C154: 20 | D154: 18 | E154: 19 | F154: 22 | G154: 24 | H154: =SUM((B154:G154-A$3/6)^2/(A$3/6)) -> 1.7 | I154: =SUM(ABS(B154:G154-A$3/6)) -> 12 | J154: =MAX(ABS(B154:G154-A$3/6)) -> 4 | K154: 7 | L154: =COUNTIF(B154:G154,"<=0.5*A$2/6")+COUNTIF(B154:G154,">=1.5*A$2/6") -> 0 | M154: 6
A155: 151 | B155: =Häufigkeitsverteilung($A$3,B$3,C$3,D$3,E$3,F$3,G$3) -> 19 | C155: 20 | D155: 18 | E155: 18 | F155: 21 | G155: 24 | H155: =SUM((B155:G155-A$3/6)^2/(A$3/6)) -> 1.3 | I155: =SUM(ABS(B155:G155-A$3/6)) -> 10 | J155: =MAX(ABS(B155:G155-A$3/6)) -> 4 | K155: 6 | L155: =COUNTIF(B155:G155,"<=0.5*A$2/6")+COUNTIF(B155:G155,">=1.5*A$2/6") -> 0 | M155: 5
A156: 152 | B156: =Häufigkeitsverteilung($A$3,B$3,C$3,D$3,E$3,F$3,G$3) -> 18 | C156: 22 | D156: 18 | E156: 20 | F156: 22 | G156: 20 | H156: =SUM((B156:G156-A$3/6)^2/(A$3/6)) -> 0.8 | I156: =SUM(ABS(B156:G156-A$3/6)) -> 8 | J156: =MAX(ABS(B156:G156-A$3/6)) -> 2 | K156: 4 | L156: =COUNTIF(B156:G156,"<=0.5*A$2/6")+COUNTIF(B156:G156,">=1.5*A$2/6") -> 0 | M156: 2
A157: 153 | B157: =Häufigkeitsverteilung($A$3,B$3,C$3,D$3,E$3,F$3,G$3) -> 21 | C157: 21 | D157: 28 | E157: 15 | F157: 19 | G157: 16 | H157: =SUM((B157:G157-A$3/6)^2/(A$3/6)) -> 5.4 | I157: =SUM(ABS(B157:G157-A$3/6)) -> 20 | J157: =MAX(ABS(B157:G157-A$3/6)) -> 8 | K157: 13 | L157: =COUNTIF(B157:G157,"<=0.5*A$2/6")+COUNTIF(B157:G157,">=1.5*A$2/6") -> 0 | M157: 10
A158: 154 | B158: =Häufigkeitsverteilung($A$3,B$3,C$3,D$3,E$3,F$3,G$3) -> 16 | C158: 17 | D158: 21 | E158: 22 | F158: 24 | G158: 20 | H158: =SUM((B158:G158-A$3/6)^2/(A$3/6)) -> 2.3 | I158: =SUM(ABS(B158:G158-A$3/6)) -> 14 | J158: =MAX(ABS(B158:G158-A$3/6)) -> 4 | K158: 8 | L158: =COUNTIF(B158:G158,"<=0.5*A$2/6")+COUNTIF(B158:G158,">=1.5*A$2/6") -> 0 | M158: 7
A159: 155 | B159: =Häufigkeitsverteilung($A$3,B$3,C$3,D$3,E$3,F$3,G$3) -> 22 | C159: 21 | D159: 16 | E159: 22 | F159: 22 | G159: 17 | H159: =SUM((B159:G159-A$3/6)^2/(A$3/6)) -> 1.9 | I159: =SUM(ABS(B159:G159-A$3/6)) -> 14 | J159: =MAX(ABS(B159:G159-A$3/6)) -> 4 | K159: 6 | L159: =COUNTIF(B159:G159,"<=0.5*A$2/6")+COUNTIF(B159:G159,">=1.5*A$2/6") -> 0 | M159: 3
A160: 156 | B160: =Häufigkeitsverteilung($A$3,B$3,C$3,D$3,E$3,F$3,G$3) -> 23 | C160: 21 | D160: 15 | E160: 23 | F160: 20 | G160: 18 | H160: =SUM((B160:G160-A$3/6)^2/(A$3/6)) -> 2.4 | I160: =SUM(ABS(B160:G160-A$3/6)) -> 14 | J160: =MAX(ABS(B160:G160-A$3/6)) -> 5 | K160: 8 | L160: =COUNTIF(B160:G160,"<=0.5*A$2/6")+COUNTIF(B160:G160,">=1.5*A$2/6") -> 0 | M160: 4
A161: 157 | B161: =Häufigkeitsverteilung($A$3,B$3,C$3,D$3,E$3,F$3,G$3) -> 21 | C161: 21 | D161: 18 | E161: 8 | F161: 28 | G161: 24 | H161: =SUM((B161:G161-A$3/6)^2/(A$3/6)) -> 11.5 | I161: =SUM(ABS(B161:G161-A$3/6)) -> 28 | J161: =MAX(ABS(B161:G161-A$3/6)) -> 12 | K161: 20 | L161: =COUNTIF(B161:G161,"<=0.5*A$2/6")+COUNTIF(B161:G161,">=1.5*A$2/6") -> 0 | M161: 12
A162: 158 | B162: =Häufigkeitsverteilung($A$3,B$3,C$3,D$3,E$3,F$3,G$3) -> 24 | C162: 16 | D162: 21 | E162: 25 | F162: 17 | G162: 17 | H162: =SUM((B162:G162-A$3/6)^2/(A$3/6)) -> 3.8 | I162: =SUM(ABS(B162:G162-A$3/6)) -> 20 | J162: =MAX(ABS(B162:G162-A$3/6)) -> 5 | K162: 9 | L162: =COUNTIF(B162:G162,"<=0.5*A$2/6")+COUNTIF(B162:G162,">=1.5*A$2/6") -> 0 | M162: 6
A163: 159 | B163: =Häufigkeitsverteilung($A$3,B$3,C$3,D$3,E$3,F$3,G$3) -> 19 | C163: 12 | D163: 24 | E163: 19 | F163: 28 | G163: 18 | H163: =SUM((B163:G163-A$3/6)^2/(A$3/6)) -> 7.5 | I163: =SUM(ABS(B163:G163-A$3/6)) -> 24 | J163: =MAX(ABS(B163:G163-A$3/6)) -> 8 | K163: 16 | L163: =COUNTIF(B163:G163,"<=0.5*A$2/6")+COUNTIF(B163:G163,">=1.5*A$2/6") -> 0 | M163: 9
A164: 160 | B164: =Häufigkeitsverteilung($A$3,B$3,C$3,D$3,E$3,F$3,G$3) -> 22 | C164: 20 | D164: 19 | E164: 16 | F164: 17 | G164: 26 | H164: =SUM((B164:G164-A$3/6)^2/(A$3/6)) -> 3.3 | I164: =SUM(ABS(B164:G164-A$3/6)) -> 16 | J164: =MAX(ABS(B164:G164-A$3/6)) -> 6 | K164: 10 | L164: =COUNTIF(B164:G164,"<=0.5*A$2/6")+COUNTIF(B164:G164,">=1.5*A$2/6") -> 0 | M164: 6
A165: 161 | B165: =Häufigkeitsverteilung($A$3,B$3,C$3,D$3,E$3,F$3,G$3) -> 24 | C165: 15 | D165: 15 | E165: 21 | F165: 21 | G165: 24 | H165: =SUM((B165:G165-A$3/6)^2/(A$3/6)) -> 4.2 | I165: =SUM(ABS(B165:G165-A$3/6)) -> 20 | J165: =MAX(ABS(B165:G165-A$3/6)) -> 5 | K165: 9 | L165: =COUNTIF(B165:G165,"<=0.5*A$2/6")+COUNTIF(B165:G165,">=1.5*A$2/6") -> 0 | M165: 6
A166: 162 | B166: =Häufigkeitsverteilung($A$3,B$3,C$3,D$3,E$3,F$3,G$3) -> 22 | C166: 19 | D166: 19 | E166: 22 | F166: 17 | G166: 21 | H166: =SUM((B166:G166-A$3/6)^2/(A$3/6)) -> 1 | I166: =SUM(ABS(B166:G166-A$3/6)) -> 10 | J166: =MAX(ABS(B166:G166-A$3/6)) -> 3 | K166: 5 | L166: =COUNTIF(B166:G166,"<=0.5*A$2/6")+COUNTIF(B166:G166,">=1.5*A$2/6") -> 0 | M166: 2
A167: 163 | B167: =Häufigkeitsverteilung($A$3,B$3,C$3,D$3,E$3,F$3,G$3) -> 18 | C167: 24 | D167: 14 | E167: 22 | F167: 21 | G167: 21 | H167: =SUM((B167:G167-A$3/6)^2/(A$3/6)) -> 3.1 | I167: =SUM(ABS(B167:G167-A$3/6)) -> 16 | J167: =MAX(ABS(B167:G167-A$3/6)) -> 6 | K167: 10 | L167: =COUNTIF(B167:G167,"<=0.5*A$2/6")+COUNTIF(B167:G167,">=1.5*A$2/6") -> 0 | M167: 4
A168: 164 | B168: =Häufigkeitsverteilung($A$3,B$3,C$3,D$3,E$3,F$3,G$3) -> 19 | C168: 17 | D168: 23 | E168: 14 | F168: 21 | G168: 26 | H168: =SUM((B168:G168-A$3/6)^2/(A$3/6)) -> 4.6 | I168: =SUM(ABS(B168:G168-A$3/6)) -> 20 | J168: =MAX(ABS(B168:G168-A$3/6)) -> 6 | K168: 12 | L168: =COUNTIF(B168:G168,"<=0.5*A$2/6")+COUNTIF(B168:G168,">=1.5*A$2/6") -> 0 | M168: 7
A169: 165 | B169: =Häufigkeitsverteilung($A$3,B$3,C$3,D$3,E$3,F$3,G$3) -> 15 | C169: 21 | D169: 20 | E169: 21 | F169: 22 | G169: 21 | H169: =SUM((B169:G169-A$3/6)^2/(A$3/6)) -> 1.6 | I169: =SUM(ABS(B169:G169-A$3/6)) -> 10 | J169: =MAX(ABS(B169:G169-A$3/6)) -> 5 | K169: 7 | L169: =COUNTIF(B169:G169,"<=0.5*A$2/6")+COUNTIF(B169:G169,">=1.5*A$2/6") -> 0 | M169: 5
A170: 166 | B170: =Häufigkeitsverteilung($A$3,B$3,C$3,D$3,E$3,F$3,G$3) -> 21 | C170: 19 | D170: 23 | E170: 22 | F170: 16 | G170: 19 | H170: =SUM((B170:G170-A$3/6)^2/(A$3/6)) -> 1.6 | I170: =SUM(ABS(B170:G170-A$3/6)) -> 12 | J170: =MAX(ABS(B170:G170-A$3/6)) -> 4 | K170: 7 | L170: =COUNTIF(B170:G170,"<=0.5*A$2/6")+COUNTIF(B170:G170,">=1.5*A$2/6") -> 0 | M170: 5
A171: 167 | B171: =Häufigkeitsverteilung($A$3,B$3,C$3,D$3,E$3,F$3,G$3) -> 25 | C171: 20 | D171: 23 | E171: 14 | F171: 20 | G171: 18 | H171: =SUM((B171:G171-A$3/6)^2/(A$3/6)) -> 3.7 | I171: =SUM(ABS(B171:G171-A$3/6)) -> 16 | J171: =MAX(ABS(B171:G171-A$3/6)) -> 6 | K171: 11 | L171: =COUNTIF(B171:G171,"<=0.5*A$2/6")+COUNTIF(B171:G171,">=1.5*A$2/6") -> 0 | M171: 8
A172: 168 | B172: =Häufigkeitsverteilung($A$3,B$3,C$3,D$3,E$3,F$3,G$3) -> 19 | C172: 21 | D172: 20 | E172: 20 | F172: 18 | G172: 22 | H172: =SUM((B172:G172-A$3/6)^2/(A$3/6)) -> 0.5 | I172: =SUM(ABS(B172:G172-A$3/6)) -> 6 | J172: =MAX(ABS(B172:G172-A$3/6)) -> 2 | K172: 4 | L172: =COUNTIF(B172:G172,"<=0.5*A$2/6")+COUNTIF(B172:G172,">=1.5*A$2/6") -> 0 | M172: 2
A173: 169 | B173: =Häufigkeitsverteilung($A$3,B$3,C$3,D$3,E$3,F$3,G$3) -> 20 | C173: 20 | D173: 18 | E173: 20 | F173: 16 | G173: 26 | H173: =SUM((B173:G173-A$3/6)^2/(A$3/6)) -> 2.8 | I173: =SUM(ABS(B173:G173-A$3/6)) -> 12 | J173: =MAX(ABS(B173:G173-A$3/6)) -> 6 | K173: 10 | L173: =COUNTIF(B173:G173,"<=0.5*A$2/6")+COUNTIF(B173:G173,">=1.5*A$2/6") -> 0 | M173: 6
A174: 170 | B174: =Häufigkeitsverteilung($A$3,B$3,C$3,D$3,E$3,F$3,G$3) -> 18 | C174: 21 | D174: 23 | E174: 18 | F174: 20 | G174: 20 | H174: =SUM((B174:G174-A$3/6)^2/(A$3/6)) -> 0.9 | I174: =SUM(ABS(B174:G174-A$3/6)) -> 8 | J174: =MAX(ABS(B174:G174-A$3/6)) -> 3 | K174: 5 | L174: =COUNTIF(B174:G174,"<=0.5*A$2/6")+COUNTIF(B174:G174,">=1.5*A$2/6") -> 0 | M174: 2
A175: 171 | B175: =Häufigkeitsverteilung($A$3,B$3,C$3,D$3,E$3,F$3,G$3) -> 17 | C175: 25 | D175: 16 | E175: 16 | F175: 24 | G175: 22 | H175: =SUM((B175:G175-A$3/6)^2/(A$3/6)) -> 4.3 | I175: =SUM(ABS(B175:G175-A$3/6)) -> 22 | J175: =MAX(ABS(B175:G175-A$3/6)) -> 5 | K175: 9 | L175: =COUNTIF(B175:G175,"<=0.5*A$2/6")+COUNTIF(B175:G175,">=1.5*A$2/6") -> 0 | M175: 6
A176: 172 | B176: =Häufigkeitsverteilung($A$3,B$3,C$3,D$3,E$3,F$3,G$3) -> 20 | C176: 18 | D176: 21 | E176: 20 | F176: 20 | G176: 21 | H176: =SUM((B176:G176-A$3/6)^2/(A$3/6)) -> 0.3 | I176: =SUM(ABS(B176:G176-A$3/6)) -> 4 | J176: =MAX(ABS(B176:G176-A$3/6)) -> 2 | K176: 3 | L176: =COUNTIF(B176:G176,"<=0.5*A$2/6")+COUNTIF(B176:G176,">=1.5*A$2/6") -> 0 | M176: 2
A177: 173 | B177: =Häufigkeitsverteilung($A$3,B$3,C$3,D$3,E$3,F$3,G$3) -> 27 | C177: 22 | D177: 15 | E177: 16 | F177: 19 | G177: 21 | H177: =SUM((B177:G177-A$3/6)^2/(A$3/6)) -> 4.8 | I177: =SUM(ABS(B177:G177-A$3/6)) -> 20 | J177: =MAX(ABS(B177:G177-A$3/6)) -> 7 | K177: 12 | L177: =COUNTIF(B177:G177,"<=0.5*A$2/6")+COUNTIF(B177:G177,">=1.5*A$2/6") -> 0 | M177: 9
A178: 174 | B178: =Häufigkeitsverteilung($A$3,B$3,C$3,D$3,E$3,F$3,G$3) -> 22 | C178: 16 | D178: 20 | E178: 18 | F178: 22 | G178: 22 | H178: =SUM((B178:G178-A$3/6)^2/(A$3/6)) -> 1.6 | I178: =SUM(ABS(B178:G178-A$3/6)) -> 12 | J178: =MAX(ABS(B178:G178-A$3/6)) -> 4 | K178: 6 | L178: =COUNTIF(B178:G178,"<=0.5*A$2/6")+COUNTIF(B178:G178,">=1.5*A$2/6") -> 0 | M178: 4
A179: 175 | B179: =Häufigkeitsverteilung($A$3,B$3,C$3,D$3,E$3,F$3,G$3) -> 23 | C179: 17 | D179: 19 | E179: 18 | F179: 22 | G179: 21 | H179: =SUM((B179:G179-A$3/6)^2/(A$3/6)) -> 1.4 | I179: =SUM(ABS(B179:G179-A$3/6)) -> 12 | J179: =MAX(ABS(B179:G179-A$3/6)) -> 3 | K179: 6 | L179: =COUNTIF(B179:G179,"<=0.5*A$2/6")+COUNTIF(B179:G179,">=1.5*A$2/6") -> 0 | M179: 3
A180: 176 | B180: =Häufigkeitsverteilung($A$3,B$3,C$3,D$3,E$3,F$3,G$3) -> 14 | C180: 19 | D180: 16 | E180: 19 | F180: 24 | G180: 28 | H180: =SUM((B180:G180-A$3/6)^2/(A$3/6)) -> 6.7 | I180: =SUM(ABS(B180:G180-A$3/6)) -> 24 | J180: =MAX(ABS(B180:G180-A$3/6)) -> 8 | K180: 14 | L180: =COUNTIF(B180:G180,"<=0.5*A$2/6")+COUNTIF(B180:G180,">=1.5*A$2/6") -> 0 | M180: 12
A181: 177 | B181: =Häufigkeitsverteilung($A$3,B$3,C$3,D$3,E$3,F$3,G$3) -> 19 | C181: 23 | D181: 28 | E181: 18 | F181: 15 | G181: 17 | H181: =SUM((B181:G181-A$3/6)^2/(A$3/6)) -> 5.6 | I181: =SUM(ABS(B181:G181-A$3/6)) -> 22 | J181: =MAX(ABS(B181:G181-A$3/6)) -> 8 | K181: 13 | L181: =COUNTIF(B181:G181,"<=0.5*A$2/6")+COUNTIF(B181:G181,">=1.5*A$2/6") -> 0 | M181: 10
A182: 178 | B182: =Häufigkeitsverteilung($A$3,B$3,C$3,D$3,E$3,F$3,G$3) -> 22 | C182: 21 | D182: 21 | E182: 13 | F182: 24 | G182: 19 | H182: =SUM((B182:G182-A$3/6)^2/(A$3/6)) -> 3.6 | I182: =SUM(ABS(B182:G182-A$3/6)) -> 16 | J182: =MAX(ABS(B182:G182-A$3/6)) -> 7 | K182: 11 | L182: =COUNTIF(B182:G182,"<=0.5*A$2/6")+COUNTIF(B182:G182,">=1.5*A$2/6") -> 0 | M182: 4
A183: 179 | B183: =Häufigkeitsverteilung($A$3,B$3,C$3,D$3,E$3,F$3,G$3) -> 22 | C183: 11 | D183: 25 | E183: 17 | F183: 20 | G183: 25 | H183: =SUM((B183:G183-A$3/6)^2/(A$3/6)) -> 7.2 | I183: =SUM(ABS(B183:G183-A$3/6)) -> 24 | J183: =MAX(ABS(B183:G183-A$3/6)) -> 9 | K183: 14 | L183: =COUNTIF(B183:G183,"<=0.5*A$2/6")+COUNTIF(B183:G183,">=1.5*A$2/6") -> 0 | M183: 7
A184: 180 | B184: =Häufigkeitsverteilung($A$3,B$3,C$3,D$3,E$3,F$3,G$3) -> 14 | C184: 29 | D184: 9 | E184: 32 | F184: 15 | G184: 21 | H184: =SUM((B184:G184-A$3/6)^2/(A$3/6)) -> 20.4 | I184: =SUM(ABS(B184:G184-A$3/6)) -> 44 | J184: =MAX(ABS(B184:G184-A$3/6)) -> 12 | K184: 23 | L184: =COUNTIF(B184:G184,"<=0.5*A$2/6")+COUNTIF(B184:G184,">=1.5*A$2/6") -> 0 | M184: 8
A185: 181 | B185: =Häufigkeitsverteilung($A$3,B$3,C$3,D$3,E$3,F$3,G$3) -> 13 | C185: 19 | D185: 22 | E185: 23 | F185: 21 | G185: 22 | H185: =SUM((B185:G185-A$3/6)^2/(A$3/6)) -> 3.4 | I185: =SUM(ABS(B185:G185-A$3/6)) -> 16 | J185: =MAX(ABS(B185:G185-A$3/6)) -> 7 | K185: 10 | L185: =COUNTIF(B185:G185,"<=0.5*A$2/6")+COUNTIF(B185:G185,">=1.5*A$2/6") -> 0 | M185: 8
A186: 182 | B186: =Häufigkeitsverteilung($A$3,B$3,C$3,D$3,E$3,F$3,G$3) -> 16 | C186: 17 | D186: 26 | E186: 18 | F186: 21 | G186: 22 | H186: =SUM((B186:G186-A$3/6)^2/(A$3/6)) -> 3.5 | I186: =SUM(ABS(B186:G186-A$3/6)) -> 18 | J186: =MAX(ABS(B186:G186-A$3/6)) -> 6 | K186: 10 | L186: =COUNTIF(B186:G186,"<=0.5*A$2/6")+COUNTIF(B186:G186,">=1.5*A$2/6") -> 0 | M186: 7
A187: 183 | B187: =Häufigkeitsverteilung($A$3,B$3,C$3,D$3,E$3,F$3,G$3) -> 26 | C187: 15 | D187: 28 | E187: 13 | F187: 22 | G187: 16 | H187: =SUM((B187:G187-A$3/6)^2/(A$3/6)) -> 9.7 | I187: =SUM(ABS(B187:G187-A$3/6)) -> 32 | J187: =MAX(ABS(B187:G187-A$3/6)) -> 8 | K187: 15 | L187: =COUNTIF(B187:G187,"<=0.5*A$2/6")+COUNTIF(B187:G187,">=1.5*A$2/6") -> 0 | M187: 9
A188: 184 | B188: =Häufigkeitsverteilung($A$3,B$3,C$3,D$3,E$3,F$3,G$3) -> 25 | C188: 23 | D188: 21 | E188: 16 | F188: 16 | G188: 19 | H188: =SUM((B188:G188-A$3/6)^2/(A$3/6)) -> 3.4 | I188: =SUM(ABS(B188:G188-A$3/6)) -> 18 | J188: =MAX(ABS(B188:G188-A$3/6)) -> 5 | K188: 9 | L188: =COUNTIF(B188:G188,"<=0.5*A$2/6")+COUNTIF(B188:G188,">=1.5*A$2/6") -> 0 | M188: 9
A189: 185 | B189: =Häufigkeitsverteilung($A$3,B$3,C$3,D$3,E$3,F$3,G$3) -> 32 | C189: 16 | D189: 21 | E189: 16 | F189: 20 | G189: 15 | H189: =SUM((B189:G189-A$3/6)^2/(A$3/6)) -> 10.1 | I189: =SUM(ABS(B189:G189-A$3/6)) -> 26 | J189: =MAX(ABS(B189:G189-A$3/6)) -> 12 | K189: 17 | L189: =COUNTIF(B189:G189,"<=0.5*A$2/6")+COUNTIF(B189:G189,">=1.5*A$2/6") -> 0 | M189: 12
A190: 186 | B190: =Häufigkeitsverteilung($A$3,B$3,C$3,D$3,E$3,F$3,G$3) -> 20 | C190: 15 | D190: 31 | E190: 26 | F190: 8 | G190: 20 | H190: =SUM((B190:G190-A$3/6)^2/(A$3/6)) -> 16.3 | I190: =SUM(ABS(B190:G190-A$3/6)) -> 34 | J190: =MAX(ABS(B190:G190-A$3/6)) -> 12 | K190: 23 | L190: =COUNTIF(B190:G190,"<=0.5*A$2/6")+COUNTIF(B190:G190,">=1.5*A$2/6") -> 0 | M190: 12
A191: 187 | B191: =Häufigkeitsverteilung($A$3,B$3,C$3,D$3,E$3,F$3,G$3) -> 22 | C191: 15 | D191: 12 | E191: 25 | F191: 20 | G191: 26 | H191: =SUM((B191:G191-A$3/6)^2/(A$3/6)) -> 7.7 | I191: =SUM(ABS(B191:G191-A$3/6)) -> 26 | J191: =MAX(ABS(B191:G191-A$3/6)) -> 8 | K191: 14 | L191: =COUNTIF(B191:G191,"<=0.5*A$2/6")+COUNTIF(B191:G191,">=1.5*A$2/6") -> 0 | M191: 11
A192: 188 | B192: =Häufigkeitsverteilung($A$3,B$3,C$3,D$3,E$3,F$3,G$3) -> 15 | C192: 20 | D192: 15 | E192: 24 | F192: 22 | G192: 24 | H192: =SUM((B192:G192-A$3/6)^2/(A$3/6)) -> 4.3 | I192: =SUM(ABS(B192:G192-A$3/6)) -> 20 | J192: =MAX(ABS(B192:G192-A$3/6)) -> 5 | K192: 9 | L192: =COUNTIF(B192:G192,"<=0.5*A$2/6")+COUNTIF(B192:G192,">=1.5*A$2/6") -> 0 | M192: 10
A193: 189 | B193: =Häufigkeitsverteilung($A$3,B$3,C$3,D$3,E$3,F$3,G$3) -> 15 | C193: 20 | D193: 28 | E193: 16 | F193: 20 | G193: 21 | H193: =SUM((B193:G193-A$3/6)^2/(A$3/6)) -> 5.3 | I193: =SUM(ABS(B193:G193-A$3/6)) -> 18 | J193: =MAX(ABS(B193:G193-A$3/6)) -> 8 | K193: 13 | L193: =COUNTIF(B193:G193,"<=0.5*A$2/6")+COUNTIF(B193:G193,">=1.5*A$2/6") -> 0 | M193: 5
A194: 190 | B194: =Häufigkeitsverteilung($A$3,B$3,C$3,D$3,E$3,F$3,G$3) -> 19 | C194: 23 | D194: 16 | E194: 19 | F194: 24 | G194: 19 | H194: =SUM((B194:G194-A$3/6)^2/(A$3/6)) -> 2.2 | I194: =SUM(ABS(B194:G194-A$3/6)) -> 14 | J194: =MAX(ABS(B194:G194-A$3/6)) -> 4 | K194: 8 | L194: =COUNTIF(B194:G194,"<=0.5*A$2/6")+COUNTIF(B194:G194,">=1.5*A$2/6") -> 0 | M194: 3
A195: 191 | B195: =Häufigkeitsverteilung($A$3,B$3,C$3,D$3,E$3,F$3,G$3) -> 20 | C195: 19 | D195: 21 | E195: 19 | F195: 23 | G195: 18 | H195: =SUM((B195:G195-A$3/6)^2/(A$3/6)) -> 0.8 | I195: =SUM(ABS(B195:G195-A$3/6)) -> 8 | J195: =MAX(ABS(B195:G195-A$3/6)) -> 3 | K195: 5 | L195: =COUNTIF(B195:G195,"<=0.5*A$2/6")+COUNTIF(B195:G195,">=1.5*A$2/6") -> 0 | M195: 2
A196: 192 | B196: =Häufigkeitsverteilung($A$3,B$3,C$3,D$3,E$3,F$3,G$3) -> 20 | C196: 18 | D196: 15 | E196: 23 | F196: 25 | G196: 19 | H196: =SUM((B196:G196-A$3/6)^2/(A$3/6)) -> 3.2 | I196: =SUM(ABS(B196:G196-A$3/6)) -> 16 | J196: =MAX(ABS(B196:G196-A$3/6)) -> 5 | K196: 10 | L196: =COUNTIF(B196:G196,"<=0.5*A$2/6")+COUNTIF(B196:G196,">=1.5*A$2/6") -> 0 | M196: 7
A197: 193 | B197: =Häufigkeitsverteilung($A$3,B$3,C$3,D$3,E$3,F$3,G$3) -> 16 | C197: 17 | D197: 12 | E197: 23 | F197: 26 | G197: 26 | H197: =SUM((B197:G197-A$3/6)^2/(A$3/6)) -> 8.5 | I197: =SUM(ABS(B197:G197-A$3/6)) -> 30 | J197: =MAX(ABS(B197:G197-A$3/6)) -> 8 | K197: 14 | L197: =COUNTIF(B197:G197,"<=0.5*A$2/6")+COUNTIF(B197:G197,">=1.5*A$2/6") -> 0 | M197: 15
A198: 194 | B198: =Häufigkeitsverteilung($A$3,B$3,C$3,D$3,E$3,F$3,G$3) -> 16 | C198: 22 | D198: 27 | E198: 23 | F198: 12 | G198: 20 | H198: =SUM((B198:G198-A$3/6)^2/(A$3/6)) -> 7.1 | I198: =SUM(ABS(B198:G198-A$3/6)) -> 24 | J198: =MAX(ABS(B198:G198-A$3/6)) -> 8 | K198: 15 | L198: =COUNTIF(B198:G198,"<=0.5*A$2/6")+COUNTIF(B198:G198,">=1.5*A$2/6") -> 0 | M198: =MAX(ABS(B198-$A$3/6),ABS(SUM(B198:C198)-2*$A$3/6),ABS(SUM(B198:D198)-3*$A$3/6),ABS(SUM(B198:E198)-4*$A$3/6),ABS(SUM(B198:F198)-5*$A$3/6)) -> 8
A199: 195 | B199: =Häufigkeitsverteilung($A$3,B$3,C$3,D$3,E$3,F$3,G$3) -> 24 | C199: 19 | D199: 22 | E199: 16 | F199: 17 | G199: 22 | H199: =SUM((B199:G199-A$3/6)^2/(A$3/6)) -> 2.5 | I199: =SUM(ABS(B199:G199-A$3/6)) -> 16 | J199: =MAX(ABS(B199:G199-A$3/6)) -> 4 | K199: 8 | L199: =COUNTIF(B199:G199,"<=0.5*A$2/6")+COUNTIF(B199:G199,">=1.5*A$2/6") -> 0 | M199: 5
A200: 196 | B200: =Häufigkeitsverteilung($A$3,B$3,C$3,D$3,E$3,F$3,G$3) -> 22 | C200: 20 | D200: 22 | E200: 19 | F200: 20 | G200: 17 | H200: =SUM((B200:G200-A$3/6)^2/(A$3/6)) -> 0.9 | I200: =SUM(ABS(B200:G200-A$3/6)) -> 8 | J200: =MAX(ABS(B200:G200-A$3/6)) -> 3 | K200: 5 | L200: =COUNTIF(B200:G200,"<=0.5*A$2/6")+COUNTIF(B200:G200,">=1.5*A$2/6") -> 0 | M200: 4
... 804 more rows

Sheet uni
B1: kritische Grenze | I1: 11 | J1: 30 | K1: 11 | L1: 18 | M1: 1 | P1: subjektiv
I2: Σ (H-20)²/20 | J2: Σ|H-20| | K2: MAX|H-20| | L2: MAX(H)-MIN(H) | M2: #≤10+#≥30 | N2: cm | P2: ganz gut | Q2: weniger gut | R2: schlecht | S2: sehr schlecht
B3: 1 | C3: 2 | D3: 3 | E3: 4 | F3: 5 | G3: 6 | I3: t | J3: s | K3: g | L3: u | M3: a
A4: Sonja H. re | B4: 28 | C4: 21 | D4: 3 | E4: 1 | F4: 23 | G4: 44 | H4: =SUM(B4:G4) -> 120 | I4: =SUM((B4:G4-H4/6)^2/(H4/6)) -> 65 | J4: =SUM(ABS(B4:G4-20)) -> 72 | K4: =MAX(ABS(B4:G4-20)) -> 24 | L4: =MAX(B4:G4)-MIN(B4:G4) -> 43 | M4: =COUNTIF(B4:G4,"<=10")+COUNTIF(B4:G4,">=30") -> 3 | N4: 17.5 | S4: 1 | AN4: 22 | AO4: 20
A5: Sonja H. li | B5: 47 | C5: 12 | D5: 21 | E5: 18 | F5: 0 | G5: 22 | H5: =SUM(B5:G5) -> 120 | I5: =SUM((B5:G5-H5/6)^2/(H5/6)) -> 60.1 | J5: =SUM(ABS(B5:G5-20)) -> 60 | K5: =MAX(ABS(B5:G5-20)) -> 27 | L5: 47 | M5: 2 | N5: 17.5 | S5: 1 | AN5: 15 | AO5: 24
A6: Svenja H. re | B6: 28 | C6: 10 | D6: 24 | E6: 18 | F6: 15 | G6: 25 | H6: 120 | I6: =SUM((B6:G6-H6/6)^2/(H6/6)) -> 11.7 | J6: =SUM(ABS(B6:G6-20)) -> 34 | K6: =MAX(ABS(B6:G6-20)) -> 10 | L6: 18 | M6: 1 | N6: 17 | Q6: 1 | AN6: 33 | AO6: 6
A7: Svenja H. li | B7: 98 | C7: 9 | D7: 0 | E7: 8 | F7: 2 | G7: 3 | H7: 120 | I7: =SUM((B7:G7-H7/6)^2/(H7/6)) -> 368.1 | J7: =SUM(ABS(B7:G7-20)) -> 156 | K7: =MAX(ABS(B7:G7-20)) -> 78 | L7: 98 | M7: 6 | N7: 17 | S7: 1 | AN7: 16 | AO7: 19
A8: Michel R. re | B8: 40 | C8: 20 | D8: 12 | E8: 23 | F8: 17 | G8: 8 | H8: 120 | I8: =SUM((B8:G8-H8/6)^2/(H8/6)) -> 31.3 | J8: =SUM(ABS(B8:G8-20)) -> 46 | K8: =MAX(ABS(B8:G8-20)) -> 20 | L8: 32 | M8: 2 | N8: 11 | R8: 1 | AN8: 18 | AO8: 4
A9: Michel R. li | B9: 12 | C9: 7 | D9: 38 | E9: 12 | F9: 6 | G9: 45 | H9: 120 | I9: =SUM((B9:G9-H9/6)^2/(H9/6)) -> 72.1 | J9: =SUM(ABS(B9:G9-20)) -> 86 | K9: =MAX(ABS(B9:G9-20)) -> 25 | L9: 39 | M9: 4 | N9: 11 | S9: 1 | AN9: 24 | AO9: 33
A10: Sarah S. re | B10: 25 | C10: 15 | D10: 19 | E10: 13 | F10: 18 | G10: 30 | H10: 120 | I10: =SUM((B10:G10-H10/6)^2/(H10/6)) -> 10.2 | J10: =SUM(ABS(B10:G10-20)) -> 30 | K10: =MAX(ABS(B10:G10-20)) -> 10 | L10: 17 | M10: 1 | N10: 12.9 | Q10: 1 | AN10: 20 | AO10: 15
A11: Sarah S. li | B11: 15 | C11: 28 | D11: 35 | E11: 7 | F11: 3 | G11: 32 | H11: 120 | I11: =SUM((B11:G11-H11/6)^2/(H11/6)) -> 45.8 | J11: =SUM(ABS(B11:G11-20)) -> 70 | K11: =MAX(ABS(B11:G11-20)) -> 17 | L11: 32 | M11: 4 | N11: 12.9 | R11: 1 | AN11: 21 | AO11: 30
A12: Thomas L. re | B12: 33 | C12: 0 | D12: 32 | E12: 21 | F12: 16 | G12: 18 | H12: 120 | I12: =SUM((B12:G12-H12/6)^2/(H12/6)) -> 36.7 | J12: =SUM(ABS(B12:G12-20)) -> 52 | K12: =MAX(ABS(B12:G12-20)) -> 20 | L12: 33 | M12: 3 | N12: 17 | S12: 1 | AN12: 18 | AO12: 19
A13: Thomas L. li | B13: 6 | C13: 46 | D13: 3 | E13: 11 | F13: 21 | G13: 33 | H13: =SUM(B13:G13) -> 120 | I13: =SUM((B13:G13-H13/6)^2/(H13/6)) -> 70.6 | J13: =SUM(ABS(B13:G13-20)) -> 80 | K13: =MAX(ABS(B13:G13-20)) -> 26 | L13: 43 | M13: 4 | N13: 17 | S13: 1 | AN13: 11 | AO13: 28
A14: Tobias H. re | B14: 38 | C14: 9 | D14: 10 | E14: 10 | F14: 6 | G14: 47 | H14: 120 | I14: =SUM((B14:G14-H14/6)^2/(H14/6)) -> 78.5 | J14: =SUM(ABS(B14:G14-20)) -> 90 | K14: =MAX(ABS(B14:G14-20)) -> 27 | L14: 41 | M14: 6 | N14: 17.7 | S14: 1 | AN14: 4 | AO14: 27
A15: Tobias H. li | B15: 52 | C15: 5 | D15: 3 | E15: 19 | F15: 25 | G15: 16 | H15: 120 | I15: =SUM((B15:G15-H15/6)^2/(H15/6)) -> 79 | J15: =SUM(ABS(B15:G15-20)) -> 74 | K15: =MAX(ABS(B15:G15-20)) -> 32 | L15: 49 | M15: 3 | N15: 17.7 | R15: 1 | AN15: 38 | AO15: 46
A16: Sarah C. re | B16: 7 | C16: 17 | D16: 28 | E16: 22 | F16: 30 | G16: 16 | H16: 120 | I16: =SUM((B16:G16-H16/6)^2/(H16/6)) -> 18.1 | J16: =SUM(ABS(B16:G16-20)) -> 40 | K16: =MAX(ABS(B16:G16-20)) -> 13 | L16: 23 | M16: 2 | N16: 17.3 | Q16: 1 | AN16: 20 | AO16: 20
A17: Sarah C. li | B17: 31 | C17: 20 | D17: 19 | E17: 14 | F17: 16 | G17: 20 | H17: 120 | I17: =SUM((B17:G17-H17/6)^2/(H17/6)) -> 8.7 | J17: =SUM(ABS(B17:G17-20)) -> 22 | K17: =MAX(ABS(B17:G17-20)) -> 11 | L17: 17 | M17: 1 | N17: 17.3 | P17: 1 | AN17: 20 | AO17: 20
A18: Susanen K. re | B18: 13 | C18: 9 | D18: 2 | E18: 74 | F18: 17 | G18: 5 | H18: 120 | I18: =SUM((B18:G18-H18/6)^2/(H18/6)) -> 182.2 | J18: =SUM(ABS(B18:G18-20)) -> 108 | K18: =MAX(ABS(B18:G18-20)) -> 54 | L18: 72 | M18: 4 | N18: 19 | S18: 1 | AN18: 20 | AO18: 20
A19: Susanne K. li | B19: 1 | C19: 2 | D19: 2 | E19: 8 | F19: 30 | G19: 77 | H19: 120 | I19: =SUM((B19:G19-H19/6)^2/(H19/6)) -> 225.1 | J19: =SUM(ABS(B19:G19-20)) -> 134 | K19: =MAX(ABS(B19:G19-20)) -> 57 | L19: 76 | M19: 6 | N19: 19 | S19: 1 | AN19: 20 | AO19: 20
A20: Aike B. re | B20: 14 | C20: 10 | D20: 22 | E20: 13 | F20: 23 | G20: 38 | H20: 120 | I20: =SUM((B20:G20-H20/6)^2/(H20/6)) -> 26.1 | J20: =SUM(ABS(B20:G20-20)) -> 46 | K20: =MAX(ABS(B20:G20-20)) -> 18 | L20: 28 | M20: 2 | N20: 16 | R20: 1 | AN20: 0 | AO20: 52
A21: Aike B. li | B21: 14 | C21: 16 | D21: 24 | E21: 10 | F21: 21 | G21: 35 | H21: 120 | I21: =SUM((B21:G21-H21/6)^2/(H21/6)) -> 19.7 | J21: =SUM(ABS(B21:G21-20)) -> 40 | K21: =MAX(ABS(B21:G21-20)) -> 15 | L21: 25 | M21: 2 | N21: 16 | R21: 1 | AN21: 27 | AO21: 4
A22: Luisa Z. re | B22: 0 | C22: 1 | D22: 25 | E22: 26 | F22: 39 | G22: 29 | H22: 120 | I22: =SUM((B22:G22-H22/6)^2/(H22/6)) -> 63.2 | J22: =SUM(ABS(B22:G22-20)) -> 78 | K22: =MAX(ABS(B22:G22-20)) -> 20 | L22: 39 | M22: 3 | N22: 16.5 | S22: 1 | AN22: 15 | AO22: 27
A23: Luisa Z. li | B23: 28 | C23: 34 | D23: 44 | E23: 2 | F23: 1 | G23: 11 | H23: 120 | I23: =SUM((B23:G23-H23/6)^2/(H23/6)) -> 80.1 | J23: =SUM(ABS(B23:G23-20)) -> 92 | K23: =MAX(ABS(B23:G23-20)) -> 24 | L23: 43 | M23: 4 | N23: 16.5 | S23: 1 | AN23: 23 | AO23: 11
A24: Torben W. re | B24: 22 | C24: 49 | D24: 8 | E24: 22 | F24: 8 | G24: 11 | H24: 120 | I24: =SUM((B24:G24-H24/6)^2/(H24/6)) -> 60.9 | J24: =SUM(ABS(B24:G24-20)) -> 66 | K24: =MAX(ABS(B24:G24-20)) -> 29 | L24: 41 | M24: 3 | N24: 16 | Q24: 1 | AN24: 3 | AO24: 6
A25: Torben W. li | B25: 21 | C25: 16 | D25: 25 | E25: 18 | F25: 14 | G25: 26 | H25: 120 | I25: =SUM((B25:G25-H25/6)^2/(H25/6)) -> 5.9 | J25: =SUM(ABS(B25:G25-20)) -> 24 | K25: =MAX(ABS(B25:G25-20)) -> 6 | L25: 12 | M25: 0 | N25: 16 | P25: 1 | AN25: 9 | AO25: 1
A26: Florian S. re | B26: 15 | C26: 28 | D26: 18 | E26: 26 | F26: 13 | G26: 20 | H26: 120 | I26: =SUM((B26:G26-H26/6)^2/(H26/6)) -> 8.9 | J26: =SUM(ABS(B26:G26-20)) -> 28 | K26: =MAX(ABS(B26:G26-20)) -> 8 | L26: 15 | M26: 0 | N26: 17 | R26: 1 | AN26: 11 | AO26: 27
A27: Florian S. li | B27: 16 | C27: 18 | D27: 23 | E27: 20 | F27: 25 | G27: 18 | H27: 120 | I27: =SUM((B27:G27-H27/6)^2/(H27/6)) -> 2.9 | J27: =SUM(ABS(B27:G27-20)) -> 16 | K27: =MAX(ABS(B27:G27-20)) -> 5 | L27: 9 | M27: 0 | N27: 17 | P27: 1 | AN27: 12 | AO27: 31
A28: Julius D. re | B28: 18 | C28: 20 | D28: 25 | E28: 21 | F28: 19 | G28: 17 | H28: 120 | I28: =SUM((B28:G28-H28/6)^2/(H28/6)) -> 2 | J28: =SUM(ABS(B28:G28-20)) -> 12 | K28: =MAX(ABS(B28:G28-20)) -> 5 | L28: 8 | M28: 0 | N28: 11 | Q28: 1 | AN28: 11 | AO28: 10
A29: Julius D. li | B29: 20 | C29: 17 | D29: 24 | E29: 26 | F29: 16 | G29: 17 | H29: 120 | I29: =SUM((B29:G29-H29/6)^2/(H29/6)) -> 4.3 | J29: =SUM(ABS(B29:G29-20)) -> 20 | K29: =MAX(ABS(B29:G29-20)) -> 6 | L29: 10 | M29: 0 | N29: 11 | R29: 1 | AN29: 24 | AO29: 30
A30: Jonathas L. re | B30: 21 | C30: 16 | D30: 28 | E30: 15 | F30: 19 | G30: 21 | H30: 120 | I30: =SUM((B30:G30-H30/6)^2/(H30/6)) -> 5.4 | J30: =SUM(ABS(B30:G30-20)) -> 20 | K30: =MAX(ABS(B30:G30-20)) -> 8 | L30: 13 | M30: 0 | N30: 15 | P30: 1 | AN30: 21 | AO30: 20
A31: Jonathas L. li | B31: 22 | C31: 24 | D31: 20 | E31: 16 | F31: 14 | G31: 24 | H31: 120 | I31: =SUM((B31:G31-H31/6)^2/(H31/6)) -> 4.4 | J31: =SUM(ABS(B31:G31-20)) -> 20 | K31: =MAX(ABS(B31:G31-20)) -> 6 | L31: 10 | M31: 0 | N31: 15 | Q31: 1
A32: Nico H. re. | B32: 20 | C32: 9 | D32: 23 | E32: 23 | F32: 22 | G32: 23 | H32: 120 | I32: =SUM((B32:G32-H32/6)^2/(H32/6)) -> 7.6 | J32: =SUM(ABS(B32:G32-20)) -> 22 | K32: =MAX(ABS(B32:G32-20)) -> 11 | L32: 14 | M32: 1 | N32: 11 | Q32: 1
A33: Sophia S. li. | B33: 32 | C33: 29 | D33: 11 | E33: 29 | F33: 12 | G33: 7 | H33: 120 | I33: =SUM((B33:G33-H33/6)^2/(H33/6)) -> 31 | J33: =SUM(ABS(B33:G33-20)) -> 60 | K33: =MAX(ABS(B33:G33-20)) -> 13 | L33: 25 | M33: 2 | N33: 16.6 | R33: 1
A34: Sophia S. re. | B34: 23 | C34: 4 | D34: 38 | E34: 6 | F34: 3 | G34: 46 | H34: 120 | I34: =SUM((B34:G34-H34/6)^2/(H34/6)) -> 87.5 | J34: =SUM(ABS(B34:G34-20)) -> 94 | K34: =MAX(ABS(B34:G34-20)) -> 26 | L34: 43 | M34: 5 | N34: 16.6 | S34: 1
A35: Jonathan H. li | B35: 54 | C35: 15 | D35: 4 | E35: 37 | F35: 0 | G35: 10 | H35: 120 | I35: =SUM((B35:G35-H35/6)^2/(H35/6)) -> 111.3 | J35: =SUM(ABS(B35:G35-20)) -> 102 | K35: =MAX(ABS(B35:G35-20)) -> 34 | L35: 54 | M35: 5 | N35: 15.2 | S35: 1
A36: Jonathan H. re | B36: 12 | C36: 9 | D36: 17 | E36: 21 | F36: 32 | G36: 29 | H36: 120 | I36: =SUM((B36:G36-H36/6)^2/(H36/6)) -> 21 | J36: =SUM(ABS(B36:G36-20)) -> 44 | K36: =MAX(ABS(B36:G36-20)) -> 12 | L36: =MAX(B36:G36)-MIN(B36:G36) -> 23 | M36: =COUNTIF(B36:G36,"<=10")+COUNTIF(B36:G36,">=30") -> 2 | N36: 15.2 | S36: 1
A37: Svenja H. li | B37: 42 | C37: 28 | D37: 33 | E37: 12 | F37: 3 | G37: 2 | H37: 120 | I37: =SUM((B37:G37-H37/6)^2/(H37/6)) -> 69.7 | J37: =SUM(ABS(B37:G37-20)) -> 86 | K37: =MAX(ABS(B37:G37-20)) -> 22 | L37: 40 | M37: 4 | N37: 17.6 | S37: 1
A38: Svenja H. re | B38: 10 | C38: 2 | D38: 32 | E38: 16 | F38: 13 | G38: 47 | H38: 120 | I38: =SUM((B38:G38-H38/6)^2/(H38/6)) -> 68.1 | J38: =SUM(ABS(B38:G38-20)) -> 78 | K38: =MAX(ABS(B38:G38-20)) -> 27 | L38: 45 | M38: 4 | N38: 17.6 | S38: 1
A39: Julian Henz li | B39: 16 | C39: 23 | D39: 14 | E39: 17 | F39: 16 | G39: 34 | H39: 120 | I39: =SUM((B39:G39-H39/6)^2/(H39/6)) -> 14.1 | J39: =SUM(ABS(B39:G39-20)) -> 34 | K39: =MAX(ABS(B39:G39-20)) -> 14 | L39: 20 | M39: 1 | N39: 12 | R39: 1
A40: Julian Henz re | B40: 23 | C40: 20 | D40: 25 | E40: 22 | F40: 12 | G40: 18 | H40: 120 | I40: =SUM((B40:G40-H40/6)^2/(H40/6)) -> 5.3 | J40: =SUM(ABS(B40:G40-20)) -> 20 | K40: =MAX(ABS(B40:G40-20)) -> 8 | L40: 13 | M40: 0 | N40: 12 | Q40: 1
A41: Kadir C. li | B41: 30 | C41: 37 | D41: 24 | E41: 13 | F41: 1 | G41: 15 | H41: 120 | I41: =SUM((B41:G41-H41/6)^2/(H41/6)) -> 42 | J41: =SUM(ABS(B41:G41-20)) -> 62 | K41: =MAX(ABS(B41:G41-20)) -> 19 | L41: 36 | M41: 3 | N41: 16.6 | R41: 1
A42: Kadir C. re | B42: 2 | C42: 2 | D42: 36 | E42: 32 | F42: 22 | G42: 26 | H42: 120 | I42: =SUM((B42:G42-H42/6)^2/(H42/6)) -> 54.4 | J42: =SUM(ABS(B42:G42-20)) -> 72 | K42: =MAX(ABS(B42:G42-20)) -> 18 | L42: 34 | M42: 4 | N42: 16.6 | R42: 1
A43: Ronja K. li | B43: 19 | C43: 21 | D43: 47 | E43: 10 | F43: 8 | G43: 15 | H43: 120 | I43: =SUM((B43:G43-H43/6)^2/(H43/6)) -> 50 | J43: =SUM(ABS(B43:G43-20)) -> 56 | K43: =MAX(ABS(B43:G43-20)) -> 27 | L43: 39 | M43: 3 | N43: 7.6 | S43: 1
A44: Ronja K. re | B44: 14 | C44: 16 | D44: 2 | E44: 42 | F44: 31 | G44: 15 | H44: 120 | I44: =SUM((B44:G44-H44/6)^2/(H44/6)) -> 50.3 | J44: =SUM(ABS(B44:G44-20)) -> 66 | K44: =MAX(ABS(B44:G44-20)) -> 22 | L44: 40 | M44: 3 | N44: 7.6 | S44: 1
A45: Anne V. re | B45: 30 | C45: 14 | D45: 6 | E45: 19 | F45: 40 | G45: 11 | H45: 120 | I45: =SUM((B45:G45-H45/6)^2/(H45/6)) -> 40.7 | J45: =SUM(ABS(B45:G45-20)) -> 60 | K45: =MAX(ABS(B45:G45-20)) -> 20 | L45: 34 | M45: 3 | N45: 7.4 | R45: 1
A46: Anne V. li | B46: 26 | C46: 23 | D46: 17 | E46: 41 | F46: 3 | G46: 10 | H46: 120 | I46: =SUM((B46:G46-H46/6)^2/(H46/6)) -> 44.2 | J46: =SUM(ABS(B46:G46-20)) -> 60 | K46: =MAX(ABS(B46:G46-20)) -> 21 | L46: 38 | M46: 3 | N46: 7.4 | R46: 1
A47: Julian C. li | B47: 23 | C47: 28 | D47: 16 | E47: 14 | F47: 21 | G47: 18 | H47: 120 | I47: =SUM((B47:G47-H47/6)^2/(H47/6)) -> 6.5 | J47: =SUM(ABS(B47:G47-20)) -> 24 | K47: =MAX(ABS(B47:G47-20)) -> 8 | L47: 14 | M47: 0 | N47: 8.7 | P47: 1
A48: Julian C. re | B48: 3 | C48: 6 | D48: 56 | E48: 37 | F48: 14 | G48: 4 | H48: 120 | I48: =SUM((B48:G48-H48/6)^2/(H48/6)) -> 118.1 | J48: =SUM(ABS(B48:G48-20)) -> 106 | K48: =MAX(ABS(B48:G48-20)) -> 36 | L48: 53 | M48: 5 | N48: 8.7 | S48: 1
A49: Jonas R. re | B49: 23 | C49: 26 | D49: 26 | E49: 2 | F49: 0 | G49: 43 | H49: 120 | I49: =SUM((B49:G49-H49/6)^2/(H49/6)) -> 66.7 | J49: =SUM(ABS(B49:G49-20)) -> 76 | K49: =MAX(ABS(B49:G49-20)) -> 23 | L49: 43 | M49: 3 | N49: 8.5 | S49: 1
A50: Jonas R. li | B50: 21 | C50: 1 | D50: 0 | E50: 52 | F50: 46 | G50: 0 | H50: 120 | I50: =SUM((B50:G50-H50/6)^2/(H50/6)) -> 143.1 | J50: =SUM(ABS(B50:G50-20)) -> 118 | K50: =MAX(ABS(B50:G50-20)) -> 32 | L50: 52 | M50: 5 | N50: 8.5 | S50: 1
A51: Thomas La. re | B51: 20 | C51: 23 | D51: 20 | E51: 23 | F51: 18 | G51: 16 | H51: 120 | I51: =SUM((B51:G51-H51/6)^2/(H51/6)) -> 1.9 | J51: =SUM(ABS(B51:G51-20)) -> 12 | K51: =MAX(ABS(B51:G51-20)) -> 4 | L51: 7 | M51: 0 | N51: 11.7 | P51: 1
A52: Thomas La. li | B52: 24 | C52: 21 | D52: 13 | E52: 21 | F52: 21 | G52: 20 | H52: 120 | I52: =SUM((B52:G52-H52/6)^2/(H52/6)) -> 3.4 | J52: =SUM(ABS(B52:G52-20)) -> 14 | K52: =MAX(ABS(B52:G52-20)) -> 7 | L52: 11 | M52: 0 | N52: 11.7 | P52: 1
A53: Laura L. li | B53: 16 | C53: 26 | D53: 18 | E53: 8 | F53: 22 | G53: 30 | H53: 120 | I53: =SUM((B53:G53-H53/6)^2/(H53/6)) -> 15.2 | J53: =SUM(ABS(B53:G53-20)) -> 36 | K53: =MAX(ABS(B53:G53-20)) -> 12 | L53: 22 | M53: 2 | N53: 5.7 | R53: 1
A54: Laura L. re | B54: 23 | C54: 14 | D54: 10 | E54: 35 | F54: 10 | G54: 28 | H54: 120 | I54: =SUM((B54:G54-H54/6)^2/(H54/6)) -> 26.7 | J54: =SUM(ABS(B54:G54-20)) -> 52 | K54: =MAX(ABS(B54:G54-20)) -> 15 | L54: 25 | M54: 3 | N54: 5.7 | R54: 1
A55: Siobhan li | B55: 34 | C55: 2 | D55: 1 | E55: 39 | F55: 39 | G55: 5 | H55: 120 | I55: =SUM((B55:G55-H55/6)^2/(H55/6)) -> 91.4 | J55: =SUM(ABS(B55:G55-20)) -> 104 | K55: =MAX(ABS(B55:G55-20)) -> 19 | L55: 38 | M55: 6 | N55: 14.7 | S55: 1
A56: Siobhan re | B56: 15 | C56: 41 | D56: 33 | E56: 5 | F56: 3 | G56: 23 | H56: 120 | I56: =SUM((B56:G56-H56/6)^2/(H56/6)) -> 57.9 | J56: =SUM(ABS(B56:G56-20)) -> 74 | K56: =MAX(ABS(B56:G56-20)) -> 21 | L56: 38 | M56: 4 | N56: 14.7
A57: NN | B57: 6 | C57: 16 | D57: 38 | E57: 4 | F57: 5 | G57: 51 | H57: 120 | I57: =SUM((B57:G57-H57/6)^2/(H57/6)) -> 98.9 | J57: =SUM(ABS(B57:G57-20)) -> 98 | K57: =MAX(ABS(B57:G57-20)) -> 31 | L57: 47 | M57: 5 | N57: 16.4 | S57: 1

Sheet seminar
H1: 11 | I1: 30 | J1: 11 | K1: 18 | L1: 1
B2: 1 | C2: 2 | D2: 3 | E2: 4 | F2: 5 | G2: 6 | H2: Σ (H-20)²/20 | I2: Σ|H-20| | J2: MAX(H-20) | K2: MAX(H)-MIN(H) | L2: #≤10+#≥30
A3: 120 | H3: t | I3: s | J3: g | K3: u | L3: a
H4: =PERCENTILE(H5:H104,0.95) -> 79.925 | I4: =PERCENTILE(I5:I104,0.95) -> 85.5 | J4: =PERCENTILE(J5:J104,0.95) -> 27.5 | K4: =PERCENTILE(K5:K104,0.95) -> 44.5 | L4: =PERCENTILE(L5:L104,0.95) -> 4
A5: Biancini re | B5: 7 | C5: 17 | D5: 18 | E5: 36 | F5: 22 | G5: 20 | H5: =SUM((B5:G5-20)^2/(20)) -> 22.1 | I5: =SUM(ABS(B5:G5-20)) -> 36 | J5: =MAX(ABS(B5:G5-20)) -> 16 | K5: =MAX(B5:G5)-MIN(B5:G5) -> 29 | L5: =COUNTIF(B5:G5,"<=10")+COUNTIF(B5:G5,">=30") -> 2 | AH5: 7 | AI5: 17 | AJ5: 18 | AK5: 36 | AL5: 22 | AM5: 20
A6: Biancini li | B6: 15 | C6: 26 | D6: 32 | E6: 8 | F6: 15 | G6: 24 | H6: =SUM((B6:G6-20)^2/(20)) -> 19.5 | I6: =SUM(ABS(B6:G6-20)) -> 44 | J6: =MAX(ABS(B6:G6-20)) -> 12 | K6: 24 | L6: 2 | AH6: 15 | AI6: 26 | AJ6: 32 | AK6: 8 | AL6: 15 | AM6: 24
A7: Biesenbach re | B7: 10 | C7: 13 | D7: 21 | E7: 37 | F7: 33 | G7: 6 | H7: =SUM((B7:G7-20)^2/(20)) -> 40.2 | I7: =SUM(ABS(B7:G7-20)) -> 62 | J7: =MAX(ABS(B7:G7-20)) -> 17 | K7: 31 | L7: 4 | AH7: 10 | AI7: 13 | AJ7: 21 | AK7: 37 | AL7: 33 | AM7: 6
A8: Biesenbach li | B8: 31 | C8: 13 | D8: 32 | E8: 9 | F8: 16 | G8: 19 | H8: =SUM((B8:G8-20)^2/(20)) -> 22.6 | I8: =SUM(ABS(B8:G8-20)) -> 46 | J8: =MAX(ABS(B8:G8-20)) -> 12 | K8: 23 | L8: 3 | AH8: 31 | AI8: 13 | AJ8: 32 | AK8: 9 | AL8: 16 | AM8: 19
A9: Erll re | B9: 27 | C9: 21 | D9: 19 | E9: 31 | F9: 18 | G9: 4 | H9: =SUM((B9:G9-20)^2/(20)) -> 21.6 | I9: =SUM(ABS(B9:G9-20)) -> 38 | J9: =MAX(ABS(B9:G9-20)) -> 16 | K9: 27 | L9: 2 | AH9: 27 | AI9: 21 | AJ9: 19 | AK9: 31 | AL9: 18 | AM9: 4
A10: Erll li | B10: 31 | C10: 15 | D10: 1 | E10: 16 | F10: 24 | G10: 33 | H10: =SUM((B10:G10-20)^2/(20)) -> 35.4 | I10: =SUM(ABS(B10:G10-20)) -> 56 | J10: =MAX(ABS(B10:G10-20)) -> 19 | K10: 32 | L10: 3 | AH10: 31 | AI10: 15 | AJ10: 1 | AK10: 16 | AL10: 24 | AM10: 33
A11: Grund re | B11: 27 | C11: 19 | D11: 12 | E11: 27 | F11: 20 | G11: 15 | H11: =SUM((B11:G11-20)^2/(20)) -> 9.4 | I11: =SUM(ABS(B11:G11-20)) -> 28 | J11: =MAX(ABS(B11:G11-20)) -> 8 | K11: 15 | L11: 0 | AH11: 27 | AI11: 19 | AJ11: 12 | AK11: 27 | AL11: 20 | AM11: 15
A12: Grund li | B12: 10 | C12: 20 | D12: 15 | E12: 24 | F12: 21 | G12: 30 | H12: =SUM((B12:G12-20)^2/(20)) -> 12.1 | I12: =SUM(ABS(B12:G12-20)) -> 30 | J12: =MAX(ABS(B12:G12-20)) -> 10 | K12: 20 | L12: 2 | AH12: 10 | AI12: 20 | AJ12: 15 | AK12: 24 | AL12: 21 | AM12: 30
A13: Janßen re | B13: 8 | C13: 27 | D13: 16 | E13: 32 | F13: 18 | G13: 19 | H13: =SUM((B13:G13-20)^2/(20)) -> 17.9 | I13: =SUM(ABS(B13:G13-20)) -> 38 | J13: =MAX(ABS(B13:G13-20)) -> 12 | K13: 24 | L13: 2 | AH13: 8 | AI13: 27 | AJ13: 16 | AK13: 32 | AL13: 18 | AM13: 19
A14: Janßen li | B14: 48 | C14: 15 | D14: 6 | E14: 12 | F14: 11 | G14: 28 | H14: =SUM((B14:G14-20)^2/(20)) -> 60.7 | I14: =SUM(ABS(B14:G14-20)) -> 72 | J14: =MAX(ABS(B14:G14-20)) -> 28 | K14: 42 | L14: 2 | AH14: 48 | AI14: 15 | AJ14: 6 | AK14: 12 | AL14: 11 | AM14: 28
A15: Korff re | B15: 46 | C15: 14 | D15: 3 | E15: 26 | F15: 4 | G15: 27 | H15: =SUM((B15:G15-20)^2/(20)) -> 67.1 | I15: =SUM(ABS(B15:G15-20)) -> 78 | J15: =MAX(ABS(B15:G15-20)) -> 26 | K15: 43 | L15: 3 | AH15: 46 | AI15: 14 | AJ15: 3 | AK15: 26 | AL15: 4 | AM15: 27
A16: Korff li | B16: 15 | C16: 1 | D16: 17 | E16: 3 | F16: 38 | G16: 46 | H16: =SUM((B16:G16-20)^2/(20)) -> 84.2 | I16: =SUM(ABS(B16:G16-20)) -> 88 | J16: =MAX(ABS(B16:G16-20)) -> 26 | K16: 45 | L16: 4 | AH16: 15 | AI16: 1 | AJ16: 17 | AK16: 3 | AL16: 38 | AM16: 46
A17: Randria re | B17: 3 | C17: 27 | D17: 36 | E17: 2 | F17: 0 | G17: 52 | H17: =SUM((B17:G17-20)^2/(20)) -> 117.1 | I17: =SUM(ABS(B17:G17-20)) -> 110 | J17: =MAX(ABS(B17:G17-20)) -> 32 | K17: 52 | L17: 5 | AH17: 20 | AI17: 20 | AJ17: 20 | AK17: 20 | AL17: 20 | AM17: 20
A18: Randria li | B18: 21 | C18: 18 | D18: 17 | E18: 33 | F18: 27 | G18: 4 | H18: =SUM((B18:G18-20)^2/(20)) -> 24.4 | I18: =SUM(ABS(B18:G18-20)) -> 42 | J18: =MAX(ABS(B18:G18-20)) -> 16 | K18: 29 | L18: 2 | AH18: 20 | AI18: 20 | AJ18: 20 | AK18: 20 | AL18: 20 | AM18: 20
A19: Rogner re | B19: 28 | C19: 21 | D19: 19 | E19: 10 | F19: 15 | G19: 27 | H19: =SUM((B19:G19-20)^2/(20)) -> 12 | I19: =SUM(ABS(B19:G19-20)) -> 32 | J19: =MAX(ABS(B19:G19-20)) -> 10 | K19: 18 | L19: 1 | AH19: 20 | AI19: 20 | AJ19: 20 | AK19: 20 | AL19: 20 | AM19: 20
A20: Rogner li | B20: 29 | C20: 18 | D20: 14 | E20: 25 | F20: 23 | G20: 11 | H20: =SUM((B20:G20-20)^2/(20)) -> 11.8 | I20: =SUM(ABS(B20:G20-20)) -> 34 | J20: =MAX(ABS(B20:G20-20)) -> 9 | K20: 18 | L20: 0 | AH20: 20 | AI20: 20 | AJ20: 20 | AK20: 20 | AL20: 20 | AM20: 20
A21: Scholz re | B21: 28 | C21: 32 | D21: 28 | E21: 23 | F21: 3 | G21: 6 | H21: =SUM((B21:G21-20)^2/(20)) -> 38.3 | I21: =SUM(ABS(B21:G21-20)) -> 62 | J21: =MAX(ABS(B21:G21-20)) -> 17 | K21: 29 | L21: 3 | AH21: 3 | AI21: 27 | AJ21: 36 | AK21: 2 | AL21: 0 | AM21: 52
A22: Scholz li | B22: 18 | C22: 29 | D22: 25 | E22: 38 | F22: 9 | G22: 1 | H22: =SUM((B22:G22-20)^2/(20)) -> 45.8 | I22: =SUM(ABS(B22:G22-20)) -> 64 | J22: =MAX(ABS(B22:G22-20)) -> 19 | K22: 37 | L22: 3 | AH22: 21 | AI22: 18 | AJ22: 17 | AK22: 33 | AL22: 27 | AM22: 4
A23: Walter re | B23: 6 | C23: 27 | D23: 29 | E23: 20 | F23: 11 | G23: 27 | H23: =SUM((B23:G23-20)^2/(20)) -> 22.8 | I23: =SUM(ABS(B23:G23-20)) -> 46 | J23: =MAX(ABS(B23:G23-20)) -> 14 | K23: 23 | L23: 1 | AH23: 28 | AI23: 21 | AJ23: 19 | AK23: 10 | AL23: 15 | AM23: 27
A24: Walter li | B24: 24 | C24: 16 | D24: 21 | E24: 16 | F24: 12 | G24: 31 | H24: =SUM((B24:G24-20)^2/(20)) -> 11.7 | I24: =SUM(ABS(B24:G24-20)) -> 32 | J24: =MAX(ABS(B24:G24-20)) -> 11 | K24: 19 | L24: 1 | AH24: 29 | AI24: 18 | AJ24: 14 | AK24: 25 | AL24: 23 | AM24: 11
A25: Weber re | B25: 31 | C25: 25 | D25: 15 | E25: 28 | F25: 11 | G25: 10 | H25: =SUM((B25:G25-20)^2/(20)) -> 20.8 | I25: =SUM(ABS(B25:G25-20)) -> 48 | J25: =MAX(ABS(B25:G25-20)) -> 11 | K25: 21 | L25: 2 | AH25: 28 | AI25: 32 | AJ25: 28 | AK25: 23 | AL25: 3 | AM25: 6
A26: Weber li | B26: 11 | C26: 12 | D26: 12 | E26: 31 | F26: 24 | G26: 30 | H26: =SUM((B26:G26-20)^2/(20)) -> 22.3 | I26: =SUM(ABS(B26:G26-20)) -> 50 | J26: =MAX(ABS(B26:G26-20)) -> 11 | K26: 20 | L26: 2 | AH26: 18 | AI26: 29 | AJ26: 25 | AK26: 38 | AL26: 9 | AM26: 1
A27: Walter re | B27: 6 | C27: 27 | D27: 29 | E27: 20 | F27: 11 | G27: 27 | H27: =SUM((B27:G27-20)^2/(20)) -> 22.8 | I27: =SUM(ABS(B27:G27-20)) -> 46 | J27: =MAX(ABS(B27:G27-20)) -> 14 | K27: 23 | L27: 1 | AH27: 6 | AI27: 27 | AJ27: 29 | AK27: 20 | AL27: 11 | AM27: 27
A28: Walter li | B28: 24 | C28: 16 | D28: 21 | E28: 16 | F28: 12 | G28: 31 | H28: =SUM((B28:G28-20)^2/(20)) -> 11.7 | I28: =SUM(ABS(B28:G28-20)) -> 32 | J28: =MAX(ABS(B28:G28-20)) -> 11 | K28: 19 | L28: 1 | AH28: 24 | AI28: 16 | AJ28: 21 | AK28: 16 | AL28: 12 | AM28: 31
A29: Weber re | B29: 31 | C29: 25 | D29: 15 | E29: 28 | F29: 11 | G29: 10 | H29: =SUM((B29:G29-20)^2/(20)) -> 20.8 | I29: =SUM(ABS(B29:G29-20)) -> 48 | J29: =MAX(ABS(B29:G29-20)) -> 11 | K29: 21 | L29: 2 | AH29: 31 | AI29: 25 | AJ29: 15 | AK29: 28 | AL29: 11 | AM29: 10
A30: Weber li | B30: 11 | C30: 12 | D30: 12 | E30: 31 | F30: 24 | G30: 30 | H30: =SUM((B30:G30-20)^2/(20)) -> 22.3 | I30: =SUM(ABS(B30:G30-20)) -> 50 | J30: =MAX(ABS(B30:G30-20)) -> 11 | K30: 20 | L30: 2 | AH30: 11 | AI30: 12 | AJ30: 12 | AK30: 31 | AL30: 24 | AM30: 30
AH31: 18 | AI31: 18 | AJ31: 22 | AK31: 21 | AL31: 21 | AM31: 20

Sheet blanco
J1: 11 | K1: 30 | L1: 11 | M1: 18 | N1: 1
C2: Name | D2: 1 | E2: 2 | F2: 3 | G2: 4 | H2: 5 | I2: 6 | J2: Σ (H-20)²/20 | K2: Σ|H-20| | L2: MAX|H-20| | M2: MAX(H)-MIN(H) | N2: #≤10+#≥30
A3: 1 | B3: r | AJ3: 7 | AK3: 17 | AL3: 18 | AM3: 36 | AN3: 22 | AO3: 20
A4: 1 | B4: l | AJ4: 15 | AK4: 26 | AL4: 32 | AM4: 8 | AN4: 15 | AO4: 24
A5: 2 | B5: r | AJ5: 10 | AK5: 13 | AL5: 21 | AM5: 37 | AN5: 33 | AO5: 6
A6: 2 | B6: l | AJ6: 31 | AK6: 13 | AL6: 32 | AM6: 9 | AN6: 16 | AO6: 19
A7: 3 | B7: r | AJ7: 27 | AK7: 21 | AL7: 19 | AM7: 31 | AN7: 18 | AO7: 4
A8: 3 | B8: l | AJ8: 31 | AK8: 15 | AL8: 1 | AM8: 16 | AN8: 24 | AO8: 33
A9: 4 | B9: r | AJ9: 27 | AK9: 19 | AL9: 12 | AM9: 27 | AN9: 20 | AO9: 15
A10: 4 | B10: l | AJ10: 10 | AK10: 20 | AL10: 15 | AM10: 24 | AN10: 21 | AO10: 30
A11: 5 | B11: r | AJ11: 8 | AK11: 27 | AL11: 16 | AM11: 32 | AN11: 18 | AO11: 19
A12: 5 | B12: l | AJ12: 48 | AK12: 15 | AL12: 6 | AM12: 12 | AN12: 11 | AO12: 28
A13: 6 | B13: r | AJ13: 46 | AK13: 14 | AL13: 3 | AM13: 26 | AN13: 4 | AO13: 27
A14: 6 | B14: l | AJ14: 15 | AK14: 1 | AL14: 17 | AM14: 3 | AN14: 38 | AO14: 46
A15: 7 | B15: r | AJ15: 20 | AK15: 20 | AL15: 20 | AM15: 20 | AN15: 20 | AO15: 20
A16: 7 | B16: l | AJ16: 20 | AK16: 20 | AL16: 20 | AM16: 20 | AN16: 20 | AO16: 20
A17: 8 | B17: r | AJ17: 20 | AK17: 20 | AL17: 20 | AM17: 20 | AN17: 20 | AO17: 20
A18: 8 | B18: l | AJ18: 20 | AK18: 20 | AL18: 20 | AM18: 20 | AN18: 20 | AO18: 20
A19: 9 | B19: r | AJ19: 3 | AK19: 27 | AL19: 36 | AM19: 2 | AN19: 0 | AO19: 52
A20: 9 | B20: l | AJ20: 21 | AK20: 18 | AL20: 17 | AM20: 33 | AN20: 27 | AO20: 4
A21: 10 | B21: r | AJ21: 28 | AK21: 21 | AL21: 19 | AM21: 10 | AN21: 15 | AO21: 27
A22: 10 | B22: l | AJ22: 29 | AK22: 18 | AL22: 14 | AM22: 25 | AN22: 23 | AO22: 11
A23: 11 | B23: r | AJ23: 28 | AK23: 32 | AL23: 28 | AM23: 23 | AN23: 3 | AO23: 6
A24: 11 | B24: l | AJ24: 18 | AK24: 29 | AL24: 25 | AM24: 38 | AN24: 9 | AO24: 1
A25: 12 | B25: r | AJ25: 6 | AK25: 27 | AL25: 29 | AM25: 20 | AN25: 11 | AO25: 27
A26: 12 | B26: l | AJ26: 24 | AK26: 16 | AL26: 21 | AM26: 16 | AN26: 12 | AO26: 31
AJ27: 31 | AK27: 25 | AL27: 15 | AM27: 28 | AN27: 11 | AO27: 10
AJ28: 11 | AK28: 12 | AL28: 12 | AM28: 31 | AN28: 24 | AO28: 30
B29: 27 | J29: =SUM((D29:I29-20)^2/(20)) -> 120 | K29: =SUM(ABS(D29:I29-20)) -> 120 | L29: =MAX(ABS(D29:I29-20)) -> 20 | M29: =MAX(D29:I29)-MIN(D29:I29) -> 0 | N29: =COUNTIF(D29:I29,"<=10")+COUNTIF(D29:I29,">=30") -> 0 | AJ29: 18 | AK29: 18 | AL29: 22 | AM29: 21 | AN29: 21 | AO29: 20
B30: 28 | J30: =SUM((D30:I30-20)^2/(20)) -> 120 | K30: =SUM(ABS(D30:I30-20)) -> 120 | L30: =MAX(ABS(D30:I30-20)) -> 20 | M30: 0 | N30: 0
B31: 29 | J31: =SUM((D31:I31-20)^2/(20)) -> 120 | K31: =SUM(ABS(D31:I31-20)) -> 120 | L31: =MAX(ABS(D31:I31-20)) -> 20 | M31: 0 | N31: 0
B32: 30 | J32: =SUM((D32:I32-20)^2/(20)) -> 120 | K32: =SUM(ABS(D32:I32-20)) -> 120 | L32: =MAX(ABS(D32:I32-20)) -> 20 | M32: 0 | N32: 0
B33: 31 | J33: =SUM((D33:I33-20)^2/(20)) -> 120 | K33: =SUM(ABS(D33:I33-20)) -> 120 | L33: =MAX(ABS(D33:I33-20)) -> 20 | M33: 0 | N33: 0
B34: 32 | J34: =SUM((D34:I34-20)^2/(20)) -> 120 | K34: =SUM(ABS(D34:I34-20)) -> 120 | L34: =MAX(ABS(D34:I34-20)) -> 20 | M34: 0 | N34: 0
B35: 33 | J35: =SUM((D35:I35-20)^2/(20)) -> 120 | K35: =SUM(ABS(D35:I35-20)) -> 120 | L35: =MAX(ABS(D35:I35-20)) -> 20 | M35: =MAX(D35:I35)-MIN(D35:I35) -> 0 | N35: =COUNTIF(D35:I35,"<=10")+COUNTIF(D35:I35,">=30") -> 0
B36: 34 | J36: =SUM((D36:I36-20)^2/(20)) -> 120 | K36: =SUM(ABS(D36:I36-20)) -> 120 | L36: =MAX(ABS(D36:I36-20)) -> 20 | M36: 0 | N36: 0
B37: 35 | J37: =SUM((D37:I37-20)^2/(20)) -> 120 | K37: =SUM(ABS(D37:I37-20)) -> 120 | L37: =MAX(ABS(D37:I37-20)) -> 20 | M37: 0 | N37: 0
B38: 36 | J38: =SUM((D38:I38-20)^2/(20)) -> 120 | K38: =SUM(ABS(D38:I38-20)) -> 120 | L38: =MAX(ABS(D38:I38-20)) -> 20 | M38: 0 | N38: 0
B39: 37 | J39: =SUM((D39:I39-20)^2/(20)) -> 120 | K39: =SUM(ABS(D39:I39-20)) -> 120 | L39: =MAX(ABS(D39:I39-20)) -> 20 | M39: 0 | N39: 0
B40: 38 | J40: =SUM((D40:I40-20)^2/(20)) -> 120 | K40: =SUM(ABS(D40:I40-20)) -> 120 | L40: =MAX(ABS(D40:I40-20)) -> 20 | M40: 0 | N40: 0
B41: 39 | J41: =SUM((D41:I41-20)^2/(20)) -> 120 | K41: =SUM(ABS(D41:I41-20)) -> 120 | L41: =MAX(ABS(D41:I41-20)) -> 20 | M41: 0 | N41: 0
B42: 40 | J42: =SUM((D42:I42-20)^2/(20)) -> 120 | K42: =SUM(ABS(D42:I42-20)) -> 120 | L42: =MAX(ABS(D42:I42-20)) -> 20 | M42: 0 | N42: 0
B43: 41 | J43: =SUM((D43:I43-20)^2/(20)) -> 120 | K43: =SUM(ABS(D43:I43-20)) -> 120 | L43: =MAX(ABS(D43:I43-20)) -> 20 | M43: 0 | N43: 0
B44: 42 | J44: =SUM((D44:I44-20)^2/(20)) -> 120 | K44: =SUM(ABS(D44:I44-20)) -> 120 | L44: =MAX(ABS(D44:I44-20)) -> 20 | M44: 0 | N44: 0
B45: 43 | J45: =SUM((D45:I45-20)^2/(20)) -> 120 | K45: =SUM(ABS(D45:I45-20)) -> 120 | L45: =MAX(ABS(D45:I45-20)) -> 20 | M45: 0 | N45: 0
B46: 44 | J46: =SUM((D46:I46-20)^2/(20)) -> 120 | K46: =SUM(ABS(D46:I46-20)) -> 120 | L46: =MAX(ABS(D46:I46-20)) -> 20 | M46: 0 | N46: 0
B47: 45 | J47: =SUM((D47:I47-20)^2/(20)) -> 120 | K47: =SUM(ABS(D47:I47-20)) -> 120 | L47: =MAX(ABS(D47:I47-20)) -> 20 | M47: 0 | N47: 0
B48: 46 | J48: =SUM((D48:I48-20)^2/(20)) -> 120 | K48: =SUM(ABS(D48:I48-20)) -> 120 | L48: =MAX(ABS(D48:I48-20)) -> 20 | M48: 0 | N48: 0
B49: 47 | J49: =SUM((D49:I49-20)^2/(20)) -> 120 | K49: =SUM(ABS(D49:I49-20)) -> 120 | L49: =MAX(ABS(D49:I49-20)) -> 20 | M49: 0 | N49: 0
B50: 48 | J50: =SUM((D50:I50-20)^2/(20)) -> 120 | K50: =SUM(ABS(D50:I50-20)) -> 120 | L50: =MAX(ABS(D50:I50-20)) -> 20 | M50: 0 | N50: 0
B51: 49 | J51: =SUM((D51:I51-20)^2/(20)) -> 120 | K51: =SUM(ABS(D51:I51-20)) -> 120 | L51: =MAX(ABS(D51:I51-20)) -> 20 | M51: 0 | N51: 0
B52: 50 | J52: =SUM((D52:I52-20)^2/(20)) -> 120 | K52: =SUM(ABS(D52:I52-20)) -> 120 | L52: =MAX(ABS(D52:I52-20)) -> 20 | M52: 0 | N52: 0
B53: 51 | J53: =SUM((D53:I53-20)^2/(20)) -> 120 | K53: =SUM(ABS(D53:I53-20)) -> 120 | L53: =MAX(ABS(D53:I53-20)) -> 20 | M53: 0 | N53: 0
B54: 52 | J54: =SUM((D54:I54-20)^2/(20)) -> 120 | K54: =SUM(ABS(D54:I54-20)) -> 120 | L54: =MAX(ABS(D54:I54-20)) -> 20 | M54: 0 | N54: 0
B55: 53 | J55: =SUM((D55:I55-20)^2/(20)) -> 120 | K55: =SUM(ABS(D55:I55-20)) -> 120 | L55: =MAX(ABS(D55:I55-20)) -> 20 | M55: 0 | N55: 0
B56: 54 | J56: =SUM((D56:I56-20)^2/(20)) -> 120 | K56: =SUM(ABS(D56:I56-20)) -> 120 | L56: =MAX(ABS(D56:I56-20)) -> 20 | M56: 0 | N56: 0
B57: 55 | J57: =SUM((D57:I57-20)^2/(20)) -> 120 | K57: =SUM(ABS(D57:I57-20)) -> 120 | L57: =MAX(ABS(D57:I57-20)) -> 20 | M57: 0 | N57: 0
B58: 56 | J58: =SUM((D58:I58-20)^2/(20)) -> 120 | K58: =SUM(ABS(D58:I58-20)) -> 120 | L58: =MAX(ABS(D58:I58-20)) -> 20 | M58: 0 | N58: 0
B59: 57 | J59: =SUM((D59:I59-20)^2/(20)) -> 120 | K59: =SUM(ABS(D59:I59-20)) -> 120 | L59: =MAX(ABS(D59:I59-20)) -> 20 | M59: 0 | N59: 0
B60: 58 | J60: =SUM((D60:I60-20)^2/(20)) -> 120 | K60: =SUM(ABS(D60:I60-20)) -> 120 | L60: =MAX(ABS(D60:I60-20)) -> 20 | M60: 0 | N60: 0
B61: 59 | J61: =SUM((D61:I61-20)^2/(20)) -> 120 | K61: =SUM(ABS(D61:I61-20)) -> 120 | L61: =MAX(ABS(D61:I61-20)) -> 20 | M61: 0 | N61: 0
B62: 60 | J62: =SUM((D62:I62-20)^2/(20)) -> 120 | K62: =SUM(ABS(D62:I62-20)) -> 120 | L62: =MAX(ABS(D62:I62-20)) -> 20 | M62: 0 | N62: 0
B63: 61 | J63: =SUM((D63:I63-20)^2/(20)) -> 120 | K63: =SUM(ABS(D63:I63-20)) -> 120 | L63: =MAX(ABS(D63:I63-20)) -> 20 | M63: 0 | N63: 0
B64: 62 | J64: =SUM((D64:I64-20)^2/(20)) -> 120 | K64: =SUM(ABS(D64:I64-20)) -> 120 | L64: =MAX(ABS(D64:I64-20)) -> 20 | M64: 0 | N64: 0
B65: 63 | J65: =SUM((D65:I65-20)^2/(20)) -> 120 | K65: =SUM(ABS(D65:I65-20)) -> 120 | L65: =MAX(ABS(D65:I65-20)) -> 20 | M65: 0 | N65: 0
B66: 64 | J66: =SUM((D66:I66-20)^2/(20)) -> 120 | K66: =SUM(ABS(D66:I66-20)) -> 120 | L66: =MAX(ABS(D66:I66-20)) -> 20 | M66: 0 | N66: 0
B67: 65 | J67: =SUM((D67:I67-20)^2/(20)) -> 120 | K67: =SUM(ABS(D67:I67-20)) -> 120 | L67: =MAX(ABS(D67:I67-20)) -> 20 | M67: =MAX(D67:I67)-MIN(D67:I67) -> 0 | N67: =COUNTIF(D67:I67,"<=10")+COUNTIF(D67:I67,">=30") -> 0
B68: 66 | J68: =SUM((D68:I68-20)^2/(20)) -> 120 | K68: =SUM(ABS(D68:I68-20)) -> 120 | L68: =MAX(ABS(D68:I68-20)) -> 20 | M68: 0 | N68: 0
B69: 67 | J69: =SUM((D69:I69-20)^2/(20)) -> 120 | K69: =SUM(ABS(D69:I69-20)) -> 120 | L69: =MAX(ABS(D69:I69-20)) -> 20 | M69: 0 | N69: 0
B70: 68 | J70: =SUM((D70:I70-20)^2/(20)) -> 120 | K70: =SUM(ABS(D70:I70-20)) -> 120 | L70: =MAX(ABS(D70:I70-20)) -> 20 | M70: 0 | N70: 0
B71: 69 | J71: =SUM((D71:I71-20)^2/(20)) -> 120 | K71: =SUM(ABS(D71:I71-20)) -> 120 | L71: =MAX(ABS(D71:I71-20)) -> 20 | M71: 0 | N71: 0
B72: 70 | J72: =SUM((D72:I72-20)^2/(20)) -> 120 | K72: =SUM(ABS(D72:I72-20)) -> 120 | L72: =MAX(ABS(D72:I72-20)) -> 20 | M72: 0 | N72: 0
B73: 71 | J73: =SUM((D73:I73-20)^2/(20)) -> 120 | K73: =SUM(ABS(D73:I73-20)) -> 120 | L73: =MAX(ABS(D73:I73-20)) -> 20 | M73: 0 | N73: 0
B74: 72 | J74: =SUM((D74:I74-20)^2/(20)) -> 120 | K74: =SUM(ABS(D74:I74-20)) -> 120 | L74: =MAX(ABS(D74:I74-20)) -> 20 | M74: 0 | N74: 0
B75: 73 | J75: =SUM((D75:I75-20)^2/(20)) -> 120 | K75: =SUM(ABS(D75:I75-20)) -> 120 | L75: =MAX(ABS(D75:I75-20)) -> 20 | M75: 0 | N75: 0
B76: 74 | J76: =SUM((D76:I76-20)^2/(20)) -> 120 | K76: =SUM(ABS(D76:I76-20)) -> 120 | L76: =MAX(ABS(D76:I76-20)) -> 20 | M76: 0 | N76: 0
B77: 75 | J77: =SUM((D77:I77-20)^2/(20)) -> 120 | K77: =SUM(ABS(D77:I77-20)) -> 120 | L77: =MAX(ABS(D77:I77-20)) -> 20 | M77: 0 | N77: 0
B78: 76 | J78: =SUM((D78:I78-20)^2/(20)) -> 120 | K78: =SUM(ABS(D78:I78-20)) -> 120 | L78: =MAX(ABS(D78:I78-20)) -> 20 | M78: 0 | N78: 0
B79: 77 | J79: =SUM((D79:I79-20)^2/(20)) -> 120 | K79: =SUM(ABS(D79:I79-20)) -> 120 | L79: =MAX(ABS(D79:I79-20)) -> 20 | M79: 0 | N79: 0
B80: 78 | J80: =SUM((D80:I80-20)^2/(20)) -> 120 | K80: =SUM(ABS(D80:I80-20)) -> 120 | L80: =MAX(ABS(D80:I80-20)) -> 20 | M80: 0 | N80: 0
B81: 79 | J81: =SUM((D81:I81-20)^2/(20)) -> 120 | K81: =SUM(ABS(D81:I81-20)) -> 120 | L81: =MAX(ABS(D81:I81-20)) -> 20 | M81: 0 | N81: 0
B82: 80 | J82: =SUM((D82:I82-20)^2/(20)) -> 120 | K82: =SUM(ABS(D82:I82-20)) -> 120 | L82: =MAX(ABS(D82:I82-20)) -> 20 | M82: 0 | N82: 0
B83: 81 | J83: =SUM((D83:I83-20)^2/(20)) -> 120 | K83: =SUM(ABS(D83:I83-20)) -> 120 | L83: =MAX(ABS(D83:I83-20)) -> 20 | M83: 0 | N83: 0
B84: 82 | J84: =SUM((D84:I84-20)^2/(20)) -> 120 | K84: =SUM(ABS(D84:I84-20)) -> 120 | L84: =MAX(ABS(D84:I84-20)) -> 20 | M84: 0 | N84: 0
B85: 83 | J85: =SUM((D85:I85-20)^2/(20)) -> 120 | K85: =SUM(ABS(D85:I85-20)) -> 120 | L85: =MAX(ABS(D85:I85-20)) -> 20 | M85: 0 | N85: 0
B86: 84 | J86: =SUM((D86:I86-20)^2/(20)) -> 120 | K86: =SUM(ABS(D86:I86-20)) -> 120 | L86: =MAX(ABS(D86:I86-20)) -> 20 | M86: 0 | N86: 0
B87: 85 | J87: =SUM((D87:I87-20)^2/(20)) -> 120 | K87: =SUM(ABS(D87:I87-20)) -> 120 | L87: =MAX(ABS(D87:I87-20)) -> 20 | M87: 0 | N87: 0
B88: 86 | J88: =SUM((D88:I88-20)^2/(20)) -> 120 | K88: =SUM(ABS(D88:I88-20)) -> 120 | L88: =MAX(ABS(D88:I88-20)) -> 20 | M88: 0 | N88: 0
B89: 87 | J89: =SUM((D89:I89-20)^2/(20)) -> 120 | K89: =SUM(ABS(D89:I89-20)) -> 120 | L89: =MAX(ABS(D89:I89-20)) -> 20 | M89: 0 | N89: 0
B90: 88 | J90: =SUM((D90:I90-20)^2/(20)) -> 120 | K90: =SUM(ABS(D90:I90-20)) -> 120 | L90: =MAX(ABS(D90:I90-20)) -> 20 | M90: 0 | N90: 0
B91: 89 | J91: =SUM((D91:I91-20)^2/(20)) -> 120 | K91: =SUM(ABS(D91:I91-20)) -> 120 | L91: =MAX(ABS(D91:I91-20)) -> 20 | M91: 0 | N91: 0
B92: 90 | J92: =SUM((D92:I92-20)^2/(20)) -> 120 | K92: =SUM(ABS(D92:I92-20)) -> 120 | L92: =MAX(ABS(D92:I92-20)) -> 20 | M92: 0 | N92: 0
B93: 91 | J93: =SUM((D93:I93-20)^2/(20)) -> 120 | K93: =SUM(ABS(D93:I93-20)) -> 120 | L93: =MAX(ABS(D93:I93-20)) -> 20 | M93: 0 | N93: 0
B94: 92 | J94: =SUM((D94:I94-20)^2/(20)) -> 120 | K94: =SUM(ABS(D94:I94-20)) -> 120 | L94: =MAX(ABS(D94:I94-20)) -> 20 | M94: 0 | N94: 0
B95: 93 | J95: =SUM((D95:I95-20)^2/(20)) -> 120 | K95: =SUM(ABS(D95:I95-20)) -> 120 | L95: =MAX(ABS(D95:I95-20)) -> 20 | M95: 0 | N95: 0
B96: 94 | J96: =SUM((D96:I96-20)^2/(20)) -> 120 | K96: =SUM(ABS(D96:I96-20)) -> 120 | L96: =MAX(ABS(D96:I96-20)) -> 20 | M96: 0 | N96: 0
B97: 95 | J97: =SUM((D97:I97-20)^2/(20)) -> 120 | K97: =SUM(ABS(D97:I97-20)) -> 120 | L97: =MAX(ABS(D97:I97-20)) -> 20 | M97: 0 | N97: 0
B98: 96 | J98: =SUM((D98:I98-20)^2/(20)) -> 120 | K98: =SUM(ABS(D98:I98-20)) -> 120 | L98: =MAX(ABS(D98:I98-20)) -> 20 | M98: 0 | N98: 0
B99: 97 | J99: =SUM((D99:I99-20)^2/(20)) -> 120 | K99: =SUM(ABS(D99:I99-20)) -> 120 | L99: =MAX(ABS(D99:I99-20)) -> 20 | M99: 0 | N99: 0
B100: 98 | J100: =SUM((D100:I100-20)^2/(20)) -> 120 | K100: =SUM(ABS(D100:I100-20)) -> 120 | L100: =MAX(ABS(D100:I100-20)) -> 20 | M100: 0 | N100: 0
B101: 99 | J101: =SUM((D101:I101-20)^2/(20)) -> 120 | K101: =SUM(ABS(D101:I101-20)) -> 120 | L101: =MAX(ABS(D101:I101-20)) -> 20 | M101: 0 | N101: 0
B102: 100 | J102: =SUM((D102:I102-20)^2/(20)) -> 120 | K102: =SUM(ABS(D102:I102-20)) -> 120 | L102: =MAX(ABS(D102:I102-20)) -> 20 | M102: 0 | N102: 0
